{"text_format":"2","workbook":"xlsx","n_sheets":1,"sheets":["ДЧБ"],"not_rendered":{"charts":0,"images":0,"macros":0,"external_links":0,"defined_names":4,"comments":0,"pivot_tables":0},"unopened":[],"bounds":{"document_bytes":16777216,"sheet_cells":100000,"run_cost":"one","rows_first":2000,"rows_last":500,"rows_between":2000,"halvings":0,"cell_chars":16384,"cell_head_chars":4096},"cells_cut":0,"cells_raw":0,"read":"whole","date_system":"1900"}

{"sheet":"ДЧБ","index":0,"n_rows":397,"n_cols":13,"rows_kept":397,"cut":false,"hidden":false,"merged":[[6,8,8,8],[6,9,8,9],[6,10,6,12],[7,10,8,10],[7,11,8,11],[7,12,8,12],[0,0,0,6],[5,0,5,8],[2,1,2,12],[3,1,3,12],[6,0,8,0],[6,1,8,1],[6,2,6,3],[7,2,8,2],[7,3,8,3],[6,4,8,4],[6,5,8,5],[6,7,8,7]]}
[]
[]
[null,"РЕЕСТР"]
[null,"источников доходов районного бюджета Тонкинского муниципального района Нижегородской области"]
[]
[{"$nulls":12},"тыс.руб."]
["Номер реестровой записи","Наименование группы источников доходов бюджетов/ наименование источника дохода бюджета","Классификация доходов бюджета",null,"Наименование главного администратора доходов бюджета","Код строки",null,"Прогноз доходов бюджета на 2020 г.                                     (по состоянию на \"01\" ноября                           2020 г.)","Кассовые поступления по состоянию на                \"01\" ноября                    2020 г.","Оценка исполнения 2020 г. ","Прогноз доходов бюджета"]
[null,null,"код","наименование",{"$nulls":6},"на 2021 г.","на 2022 г.","на 2023 г."]
[{"$nulls":6},"Наименование Доп. КД"]
["1","2","3","4","5","6",null,"7","8",9,10,11,12]
[{"$nulls":7},406331.4,323790.05,{"$f":"J12+J207","v":405372.26},{"$f":"K12+K207","v":378143.60000000003},{"$f":"L12+L207","v":362823.9},394172.29999999993]
[null,"НАЛОГОВЫЕ И НЕНАЛОГОВЫЕ ДОХОДЫ","000. 1.00.00.00.0.00.0.000.000","НАЛОГОВЫЕ И НЕНАЛОГОВЫЕ ДОХОДЫ",null,null,"НЕ УКАЗАНО",66338,52233.32,{"$f":"J13+J37+J81+J104+J121+J136+J142+J147+J151+J203","v":65378.850000000006},{"$f":"K13+K37+K81+K104+K121+K136+K142+K151+K203+K147+K79","v":63854.700000000004},{"$f":"L13+L37+L81+L104+L121+L136+L142+L151+L203+L147+L79","v":68002.2},72692.599999999991]
[null,"НАЛОГИ НА ПРИБЫЛЬ, ДОХОДЫ","182. 1.01.00.00.0.00.0.000.000","НАЛОГИ НА ПРИБЫЛЬ, ДОХОДЫ","Управление Федеральной налоговой службы по Нижегородской области",null,"НЕ УКАЗАНО",57870.1,41525.449999999997,{"$f":"J14","v":54066.600000000006},{"$f":"K14","v":57201},{"$f":"L14","v":61033.5},{"$f":"M14","v":65355.199999999997}]
[null,"Налог на доходы физических лиц","182. 1.01.02.00.0.01.0.000.110","Налог на доходы физических лиц","Управление Федеральной налоговой службы по Нижегородской области",null,"НЕ УКАЗАНО",57870.1,41525.449999999997,{"$f":"J15+J22+J27+J34","v":54066.600000000006},{"$f":"K15+K22+K27+K34","v":57201},{"$f":"L15+L22+L27+L34","v":61033.5},65355.199999999997]
[null,null,"182. 1.01.02.01.0.01.0.000.110","Налог на доходы физических лиц с доходов, источником которых является налоговый агент, за исключением доходов, в отношении которых исчисление и уплата налога осуществляются в соответствии со статьями 227, 227.1 и 228 Налогового кодекса Российской Федерации","Управление Федеральной налоговой службы по Нижегородской области",null,"НЕ УКАЗАНО",57168.1,41054.879999999997,53525.9,56693.4,60423.199999999997,64701.7]
[null,null,"1.01.02.01.0.01.1.000.110","Налог на доходы физических лиц с доходов, источником которых является налоговый агент, за исключением доходов, в отношении которых исчисление и уплата налога осуществляются в соответствии со статьями 227, 227.1 и 228 Налогового кодекса Российской Федерации (сумма платежа (перерасчеты, недоимка и задолженность по соответствующему платежу, в том числе по отмененному)","Управление Федеральной налоговой службы по Нижегородской области",null,"НЕ УКАЗАНО",57168.1,40881.68]
[null,null,"1.01.02.01.0.01.1.000.110","Налог на доходы физических лиц с доходов, источником которых является налоговый агент, за исключением доходов, в отношении которых исчисление и уплата налога осуществляются в соответствии со статьями 227, 227.1 и 228 Налогового кодекса Российской Федерации (сумма платежа (перерасчеты, недоимка и задолженность по соответствующему платежу, в том числе по отмененному)","Управление Федеральной налоговой службы по Нижегородской области",null,"НЕ УКАЗАНО",57168.1,40881.68]
[null,null,"1.01.02.01.0.01.2.100.110","Налог на доходы физических лиц с доходов, источником которых является налоговый агент, за исключением доходов, в отношении которых исчисление и уплата налога осуществляются в соответствии со статьями 227, 227.1 и 228 Налогового кодекса Российской Федерации (пени по соответствующему платежу)","Управление Федеральной налоговой службы по Нижегородской области",null,"НЕ УКАЗАНО",0,101.67]
[null,null,"1.01.02.01.0.01.2.100.110","Налог на доходы физических лиц с доходов, источником которых является налоговый агент, за исключением доходов, в отношении которых исчисление и уплата налога осуществляются в соответствии со статьями 227, 227.1 и 228 Налогового кодекса Российской Федерации (пени по соответствующему платежу)","Управление Федеральной налоговой службы по Нижегородской области",null,"НЕ УКАЗАНО",0,101.67]
[null,null,"1.01.02.01.0.01.3.000.110","Налог на доходы физических лиц с доходов, источником которых является налоговый агент, за исключением доходов, в отношении которых исчисление и уплата налога осуществляются в соответствии со статьями 227, 227.1 и 228 Налогового кодекса Российской Федерации (суммы денежных взысканий (штрафов) по соответствующему платежу согласно законодательству Российской Федерации)","Управление Федеральной налоговой службы по Нижегородской области",null,"НЕ УКАЗАНО",0,71.53]
[null,null,"1.01.02.01.0.01.3.000.110","Налог на доходы физических лиц с доходов, источником которых является налоговый агент, за исключением доходов, в отношении которых исчисление и уплата налога осуществляются в соответствии со статьями 227, 227.1 и 228 Налогового кодекса Российской Федерации (суммы денежных взысканий (штрафов) по соответствующему платежу согласно законодательству Российской Федерации)","Управление Федеральной налоговой службы по Нижегородской области",null,"НЕ УКАЗАНО",0,71.53]
[null,null,"182. 1.01.02.02.0.01.0.000.110","Налог на доходы физических лиц с доходов, полученных от осуществления деятельности физическими лицами, зарегистрированными в качестве индивидуальных предпринимателей, нотариусов, занимающихся частной практикой, адвокатов, учредивших адвокатские кабинеты, и других лиц, занимающихся частной практикой в соответствии со статьей 227 Налогового кодекса Российской Федерации","Управление Федеральной налоговой службы по Нижегородской области",null,"НЕ УКАЗАНО",621,182.97,216.3,414,427,457.5]
[null,null,"1.01.02.02.0.01.1.000.110","Налог на доходы физических лиц с доходов, полученных от осуществления деятельности физическими лицами, зарегистрированными в качестве индивидуальных предпринимателей, нотариусов, занимающихся частной практикой, адвокатов, учредивших адвокатские кабинеты, и других лиц, занимающихся частной практикой в соответствии со статьей 227 Налогового кодекса Российской Федерации (сумма платежа (перерасчеты, недоимка и задолженность по соответствующему платежу, в том числе по отмененному)","Управление Федеральной налоговой службы по Нижегородской области",null,"НЕ УКАЗАНО",621,181.17]
[null,null,"1.01.02.02.0.01.1.000.110","Налог на доходы физических лиц с доходов, полученных от осуществления деятельности физическими лицами, зарегистрированными в качестве индивидуальных предпринимателей, нотариусов, занимающихся частной практикой, адвокатов, учредивших адвокатские кабинеты, и других лиц, занимающихся частной практикой в соответствии со статьей 227 Налогового кодекса Российской Федерации (сумма платежа (перерасчеты, недоимка и задолженность по соответствующему платежу, в том числе по отмененному)","Управление Федеральной налоговой службы по Нижегородской области",null,"НЕ УКАЗАНО",621,181.17]
[null,null,"1.01.02.02.0.01.3.000.110","Налог на доходы физических лиц с доходов, полученных от осуществления деятельности физическими лицами, зарегистрированными в качестве индивидуальных предпринимателей, нотариусов, занимающихся частной практикой, адвокатов, учредивших адвокатские кабинеты, и других лиц, занимающихся частной практикой в соответствии со статьей 227 Налогового кодекса Российской Федерации (суммы денежных взысканий (штрафов) по соответствующему платежу согласно законодательству Российской Федерации)","Управление Федеральной налоговой службы по Нижегородской области",null,"НЕ УКАЗАНО",0,1.8]
[null,null,"1.01.02.02.0.01.3.000.110","Налог на доходы физических лиц с доходов, полученных от осуществления деятельности физическими лицами, зарегистрированными в качестве индивидуальных предпринимателей, нотариусов, занимающихся частной практикой, адвокатов, учредивших адвокатские кабинеты, и других лиц, занимающихся частной практикой в соответствии со статьей 227 Налогового кодекса Российской Федерации (суммы денежных взысканий (штрафов) по соответствующему платежу согласно законодательству Российской Федерации)","Управление Федеральной налоговой службы по Нижегородской области",null,"НЕ УКАЗАНО",0,1.8]
[null,null,"182. 1.01.02.03.0.01.0.000.110","Налог на доходы физических лиц с доходов, полученных физическими лицами в соответствии со статьей 228 Налогового кодекса Российской Федерации","Управление Федеральной налоговой службы по Нижегородской области",null,"НЕ УКАЗАНО",81,109.16,145.96,93.6,183.3,196]
[null,null,"1.01.02.03.0.01.1.000.110","Налог на доходы физических лиц с доходов, полученных физическими лицами в соответствии со статьей 228 Налогового кодекса Российской Федерации (сумма платежа (перерасчеты, недоимка и задолженность по соответствующему платежу, в том числе по отмененному)","Управление Федеральной налоговой службы по Нижегородской области",null,"НЕ УКАЗАНО",81,107.29]
[null,null,"1.01.02.03.0.01.1.000.110","Налог на доходы физических лиц с доходов, полученных физическими лицами в соответствии со статьей 228 Налогового кодекса Российской Федерации (сумма платежа (перерасчеты, недоимка и задолженность по соответствующему платежу, в том числе по отмененному)","Управление Федеральной налоговой службы по Нижегородской области",null,"НЕ УКАЗАНО",81,107.29]
[null,null,"1.01.02.03.0.01.2.100.110","Налог на доходы физических лиц с доходов, полученных физическими лицами в соответствии со статьей 228 Налогового кодекса Российской Федерации (пени по соответствующему платежу)","Управление Федеральной налоговой службы по Нижегородской области",null,"НЕ УКАЗАНО",0,7.0000000000000007E-2]
[null,null,"1.01.02.03.0.01.2.100.110","Налог на доходы физических лиц с доходов, полученных физическими лицами в соответствии со статьей 228 Налогового кодекса Российской Федерации (пени по соответствующему платежу)","Управление Федеральной налоговой службы по Нижегородской области",null,"НЕ УКАЗАНО",0,7.0000000000000007E-2]
[null,null,"1.01.02.03.0.01.3.000.110","Налог на доходы физических лиц с доходов, полученных физическими лицами в соответствии со статьей 228 Налогового кодекса Российской Федерации (суммы денежных взысканий (штрафов) по соответствующему платежу согласно законодательству Российской Федерации)","Управление Федеральной налоговой службы по Нижегородской области",null,"НЕ УКАЗАНО",0,1.8]
[null,null,"1.01.02.03.0.01.3.000.110","Налог на доходы физических лиц с доходов, полученных физическими лицами в соответствии со статьей 228 Налогового кодекса Российской Федерации (суммы денежных взысканий (штрафов) по соответствующему платежу согласно законодательству Российской Федерации)","Управление Федеральной налоговой службы по Нижегородской области",null,"НЕ УКАЗАНО",0,1.8]
[null,null,"182. 1.01.02.04.0.01.0.000.110","Налог на доходы физических лиц в виде фиксированных авансовых платежей с доходов, полученных физическими лицами, являющимися иностранными гражданами, осуществляющими трудовую деятельность по найму на основании патента в соответствии со статьей 227.1 Налогового кодекса Российской Федерации","Управление Федеральной налоговой службы по Нижегородской области",null,"НЕ УКАЗАНО",0,178.44,178.44]
[null,null,"1.01.02.04.0.01.1.000.110","Налог на доходы физических лиц в виде фиксированных авансовых платежей с доходов, полученных физическими лицами, являющимися иностранными гражданами, осуществляющими трудовую деятельность по найму на основании патента в соответствии со статьей 227.1 Налогового кодекса Российской Федерации (сумма платежа (перерасчеты, недоимка и задолженность по соответствующему платежу, в том числе по отмененному)","Управление Федеральной налоговой службы по Нижегородской области",null,"НЕ УКАЗАНО",0,178.44]
[null,null,"1.01.02.04.0.01.1.000.110","Налог на доходы физических лиц в виде фиксированных авансовых платежей с доходов, полученных физическими лицами, являющимися иностранными гражданами, осуществляющими трудовую деятельность по найму на основании патента в соответствии со статьей 227.1 Налогового кодекса Российской Федерации (сумма платежа (перерасчеты, недоимка и задолженность по соответствующему платежу, в том числе по отмененному)","Управление Федеральной налоговой службы по Нижегородской области",null,"НЕ УКАЗАНО",0,178.44]
[null,"НАЛОГИ НА СОВОКУПНЫЙ ДОХОД","182. 1.05.00.00.0.00.0.000.000","НАЛОГИ НА СОВОКУПНЫЙ ДОХОД","Управление Федеральной налоговой службы по Нижегородской области",null,"НЕ УКАЗАНО",4844.7,4276.8599999999997,{"$f":"J38+J56+J71","v":4437.5},{"$f":"K38+K56+K71","v":3748.4999999999995},{"$f":"L38+L56+L71","v":3961.7},4221.4000000000005]
[null,"Налог, взимаемый в связи с применением упрощенной системы налогообложения","182. 1.05.01.00.0.00.0.000.110","Налог, взимаемый в связи с применением упрощенной системы налогообложения","Управление Федеральной налоговой службы по Нижегородской области",null,"НЕ УКАЗАНО",2100.3000000000002,2153.4,{"$f":"J39+J47","v":2280},{"$f":"K47+K39","v":3312.8999999999996},{"$f":"L47+L39","v":3841.2},4098.6000000000004]
[null,null,"182. 1.05.01.01.0.01.0.000.110","Налог, взимаемый с налогоплательщиков, выбравших в качестве объекта налогообложения доходы","Управление Федеральной налоговой службы по Нижегородской области",null,"НЕ УКАЗАНО",1853.9,1738.17,2006.4,2829.2,3265,3483.8]
[null,null,"1.05.01.01.1.01.0.000.110","Налог, взимаемый с налогоплательщиков, выбравших в качестве объекта налогообложения доходы","Управление Федеральной налоговой службы по Нижегородской области",null,"НЕ УКАЗАНО",1853.9,1738.17]
[null,null,"1.05.01.01.1.01.1.000.110","Налог, взимаемый с налогоплательщиков, выбравших в качестве объекта налогообложения доходы (сумма платежа (перерасчеты, недоимка и задолженность по соответствующему платежу, в том числе по отмененному)","Управление Федеральной налоговой службы по Нижегородской области",null,"НЕ УКАЗАНО",1853.9,1689.45]
[null,null,"1.05.01.01.1.01.1.000.110","Налог, взимаемый с налогоплательщиков, выбравших в качестве объекта налогообложения доходы (сумма платежа (перерасчеты, недоимка и задолженность по соответствующему платежу, в том числе по отмененному)","Управление Федеральной налоговой службы по Нижегородской области",null,"НЕ УКАЗАНО",1853.9,1689.45]
[null,null,"1.05.01.01.1.01.2.100.110","Налог, взимаемый с налогоплательщиков, выбравших в качестве объекта налогообложения доходы (пени по соответствующему платежу)","Управление Федеральной налоговой службы по Нижегородской области",null,"НЕ УКАЗАНО",0,48.02]
[null,null,"1.05.01.01.1.01.2.100.110","Налог, взимаемый с налогоплательщиков, выбравших в качестве объекта налогообложения доходы (пени по соответствующему платежу)","Управление Федеральной налоговой службы по Нижегородской области",null,"НЕ УКАЗАНО",0,48.02]
[null,null,"1.05.01.01.1.01.3.000.110","Налог, взимаемый с налогоплательщиков, выбравших в качестве объекта налогообложения доходы (суммы денежных взысканий (штрафов) по соответствующему платежу согласно законодательству Российской Федерации)","Управление Федеральной налоговой службы по Нижегородской области",null,"НЕ УКАЗАНО",0,0.7]
[null,null,"1.05.01.01.1.01.3.000.110","Налог, взимаемый с налогоплательщиков, выбравших в качестве объекта налогообложения доходы (суммы денежных взысканий (штрафов) по соответствующему платежу согласно законодательству Российской Федерации)","Управление Федеральной налоговой службы по Нижегородской области",null,"НЕ УКАЗАНО",0,0.7]
[null,null,"182. 1.05.01.02.0.01.0.000.110","Налог, взимаемый с налогоплательщиков, выбравших в качестве объекта налогообложения доходы, уменьшенные на величину расходов","Управление Федеральной налоговой службы по Нижегородской области",null,"НЕ УКАЗАНО",246.4,415.22,273.60000000000002,483.7,576.20000000000005,614.79999999999995]
[null,null,"1.05.01.02.1.01.0.000.110","Налог, взимаемый с налогоплательщиков, выбравших в качестве объекта налогообложения доходы, уменьшенные на величину расходов (в том числе минимальный налог, зачисляемый в бюджеты субъектов Российской Федерации)","Управление Федеральной налоговой службы по Нижегородской области",null,"НЕ УКАЗАНО",246.4,415.22]
[null,null,"1.05.01.02.1.01.1.000.110","Налог, взимаемый с налогоплательщиков, выбравших в качестве объекта налогообложения доходы, уменьшенные на величину расходов (в том числе минимальный налог, зачисляемый в бюджеты субъектов Российской Федерации (сумма платежа (перерасчеты, недоимка и задолженность по соответствующему платежу, в том числе по отмененному)","Управление Федеральной налоговой службы по Нижегородской области",null,"НЕ УКАЗАНО",246.4,413]
[null,null,"1.05.01.02.1.01.1.000.110","Налог, взимаемый с налогоплательщиков, выбравших в качестве объекта налогообложения доходы, уменьшенные на величину расходов (в том числе минимальный налог, зачисляемый в бюджеты субъектов Российской Федерации (сумма платежа (перерасчеты, недоимка и задолженность по соответствующему платежу, в том числе по отмененному)","Управление Федеральной налоговой службы по Нижегородской области",null,"НЕ УКАЗАНО",246.4,413]
[null,null,"1.05.01.02.1.01.2.100.110","Налог, взимаемый с налогоплательщиков, выбравших в качестве объекта налогообложения доходы, уменьшенные на величину расходов (в том числе минимальный налог, зачисляемый в бюджеты субъектов Российской Федерации (пени по соответствующему платежу)","Управление Федеральной налоговой службы по Нижегородской области",null,"НЕ УКАЗАНО",0,2.23]
[null,null,"1.05.01.02.1.01.2.100.110","Налог, взимаемый с налогоплательщиков, выбравших в качестве объекта налогообложения доходы, уменьшенные на величину расходов (в том числе минимальный налог, зачисляемый в бюджеты субъектов Российской Федерации (пени по соответствующему платежу)","Управление Федеральной налоговой службы по Нижегородской области",null,"НЕ УКАЗАНО",0,2.23]
[null,null,"182. 1.05.01.05.0.01.0.000.110","Минимальный налог, зачисляемый в бюджеты субъектов Российской Федерации (за налоговые периоды, истекшие до 1 января 2016 года)","Управление Федеральной налоговой службы по Нижегородской области",null,"НЕ УКАЗАНО",0,0.01]
[null,null,"1.05.01.05.0.01.2.100.110","Минимальный налог, зачисляемый в бюджеты субъектов Российской Федерации (за налоговые периоды, истекшие до 1 января 2016 года) (пени по соответствующему платежу)","Управление Федеральной налоговой службы по Нижегородской области",null,"НЕ УКАЗАНО",0,0.01]
[null,null,"1.05.01.05.0.01.2.100.110","Минимальный налог, зачисляемый в бюджеты субъектов Российской Федерации (за налоговые периоды, истекшие до 1 января 2016 года) (пени по соответствующему платежу)","Управление Федеральной налоговой службы по Нижегородской области",null,"НЕ УКАЗАНО",0,0.01]
[null,"Единый налог на вмененный доход для отдельных видов деятельности","182. 1.05.02.00.0.02.0.000.110","Единый налог на вмененный доход для отдельных видов деятельности","Управление Федеральной налоговой службы по Нижегородской области",null,"НЕ УКАЗАНО",2657.8,1766.02,{"$f":"J57","v":1800},{"$f":"K57+K66","v":317.7},{"$f":"L57+L66","v":0},0]
[null,null,"182.1.05.02.01.0.02.0.000.110","Единый налог на вмененный доход для отдельных видов деятельности","Управление Федеральной налоговой службы по Нижегородской области",null,"НЕ УКАЗАНО",2657.8,1765.92,1800,317.7]
[null,null,"1.05.02.01.0.02.1.000.110","Единый налог на вмененный доход для отдельных видов деятельности (сумма платежа (перерасчеты, недоимка и задолженность по соответствующему платежу, в том числе по отмененному)","Управление Федеральной налоговой службы по Нижегородской области",null,"НЕ УКАЗАНО",2657.8,1755.61]
[null,null,"1.05.02.01.0.02.1.000.110","Единый налог на вмененный доход для отдельных видов деятельности (сумма платежа (перерасчеты, недоимка и задолженность по соответствующему платежу, в том числе по отмененному)","Управление Федеральной налоговой службы по Нижегородской области",null,"НЕ УКАЗАНО",2657.8,1755.61]
[null,null,"1.05.02.01.0.02.2.100.110","Единый налог на вмененный доход для отдельных видов деятельности (пени по соответствующему платежу)","Управление Федеральной налоговой службы по Нижегородской области",null,"НЕ УКАЗАНО",0,3.48]
[null,null,"1.05.02.01.0.02.2.100.110","Единый налог на вмененный доход для отдельных видов деятельности (пени по соответствующему платежу)","Управление Федеральной налоговой службы по Нижегородской области",null,"НЕ УКАЗАНО",0,3.48]
[null,null,"1.05.02.01.0.02.3.000.110","Единый налог на вмененный доход для отдельных видов деятельности (суммы денежных взысканий (штрафов) по соответствующему платежу согласно законодательству Российской Федерации)","Управление Федеральной налоговой службы по Нижегородской области",null,"НЕ УКАЗАНО",0,6.58]
[null,null,"1.05.02.01.0.02.3.000.110","Единый налог на вмененный доход для отдельных видов деятельности (суммы денежных взысканий (штрафов) по соответствующему платежу согласно законодательству Российской Федерации)","Управление Федеральной налоговой службы по Нижегородской области",null,"НЕ УКАЗАНО",0,6.58]
[null,null,"1.05.02.01.0.02.4.000.110","Единый налог на вмененный доход для отдельных видов деятельности (прочие поступления)","Управление Федеральной налоговой службы по Нижегородской области",null,"НЕ УКАЗАНО",0,0.25]
[null,null,"1.05.02.01.0.02.4.000.110","Единый налог на вмененный доход для отдельных видов деятельности (прочие поступления)","Управление Федеральной налоговой службы по Нижегородской области",null,"НЕ УКАЗАНО",0,0.25]
[null,null,"182.1.05.02.02.0.02.0.000.110","Единый налог на вмененный доход для отдельных видов деятельности (за налоговые периоды, истекшие до 1 января 2011 года)","Управление Федеральной налоговой службы по Нижегородской области",null,"НЕ УКАЗАНО",0,0.1]
[null,null,"1.05.02.02.0.02.2.100.110","Единый налог на вмененный доход для отдельных видов деятельности (за налоговые периоды, истекшие до 1 января 2011 года) (пени по соответствующему платежу)","Управление Федеральной налоговой службы по Нижегородской области",null,"НЕ УКАЗАНО",0,0.01]
[null,null,"1.05.02.02.0.02.2.100.110","Единый налог на вмененный доход для отдельных видов деятельности (за налоговые периоды, истекшие до 1 января 2011 года) (пени по соответствующему платежу)","Управление Федеральной налоговой службы по Нижегородской области",null,"НЕ УКАЗАНО",0,0.01]
[null,null,"1.05.02.02.0.02.3.000.110","Единый налог на вмененный доход для отдельных видов деятельности (за налоговые периоды, истекшие до 1 января 2011 года) (суммы денежных взысканий (штрафов) по соответствующему платежу согласно законодательству Российской Федерации)","Управление Федеральной налоговой службы по Нижегородской области",null,"НЕ УКАЗАНО",0,0.09]
[null,null,"1.05.02.02.0.02.3.000.110","Единый налог на вмененный доход для отдельных видов деятельности (за налоговые периоды, истекшие до 1 января 2011 года) (суммы денежных взысканий (штрафов) по соответствующему платежу согласно законодательству Российской Федерации)","Управление Федеральной налоговой службы по Нижегородской области",null,"НЕ УКАЗАНО",0,0.09]
[null,"Единый сельскохозяйственный налог","182.1.05.03.00.0.01.0.000.110","Единый сельскохозяйственный налог","Управление Федеральной налоговой службы по Нижегородской области",null,"НЕ УКАЗАНО",86.6,357.45,{"$f":"J72","v":357.5},{"$f":"K72","v":117.9},{"$f":"L72","v":120.5},122.8]
[null,null,"182.1.05.03.01.0.01.0.000.110","Единый сельскохозяйственный налог","Управление Федеральной налоговой службы по Нижегородской области",null,"НЕ УКАЗАНО",86.6,357.45,357.5,117.9,120.5,122.8]
[null,null,"1.05.03.01.0.01.1.000.110","Единый сельскохозяйственный налог (сумма платежа (перерасчеты, недоимка и задолженность по соответствующему платежу, в том числе по отмененному)","Управление Федеральной налоговой службы по Нижегородской области",null,"НЕ УКАЗАНО",86.6,354.25]
[null,null,"1.05.03.01.0.01.1.000.110","Единый сельскохозяйственный налог (сумма платежа (перерасчеты, недоимка и задолженность по соответствующему платежу, в том числе по отмененному)","Управление Федеральной налоговой службы по Нижегородской области",null,"НЕ УКАЗАНО",86.6,354.25]
[null,null,"1.05.03.01.0.01.2.100.110","Единый сельскохозяйственный налог (пени по соответствующему платежу)","Управление Федеральной налоговой службы по Нижегородской области",null,"НЕ УКАЗАНО",0,3.07]
[null,null,"1.05.03.01.0.01.2.100.110","Единый сельскохозяйственный налог (пени по соответствующему платежу)","Управление Федеральной налоговой службы по Нижегородской области",null,"НЕ УКАЗАНО",0,3.07]
[null,null,"1.05.03.01.0.01.3.000.110","Единый сельскохозяйственный налог (суммы денежных взысканий (штрафов) по соответствующему платежу согласно законодательству Российской Федерации)","Управление Федеральной налоговой службы по Нижегородской области",null,"НЕ УКАЗАНО",0,0.13]
[null,null,"1.05.03.01.0.01.3.000.110","Единый сельскохозяйственный налог (суммы денежных взысканий (штрафов) по соответствующему платежу согласно законодательству Российской Федерации)","Управление Федеральной налоговой службы по Нижегородской области",null,"НЕ УКАЗАНО",0,0.13]
[null,"Налог, взимаемый в связи с применением патентной системы налогообложения","182.1.05.04.02.0.00.0.000.110","Налог, взимаемый в связи с применением патентной системы налогообложения","Управление Федеральной налоговой службы по Нижегородской области",{"$nulls":5},{"$f":"K80","v":155.4},{"$f":"L80","v":165.2},176.3]
[null,null,"182.1.05.04.02.0.02.0.000.110","Налог, взимаемый в связи с применением патентной системы налогообложения, зачисляемый в бюджеты муниципальных районов","Управление Федеральной налоговой службы по Нижегородской области",{"$nulls":5},155.4,165.2,176.3]
[null,"ГОСУДАРСТВЕННАЯ ПОШЛИНА","000.1.08.00.00.0.00.0.000.000","ГОСУДАРСТВЕННАЯ ПОШЛИНА",null,null,"НЕ УКАЗАНО",1219.2,809.11,{"$f":"J85+J88+J92+J95+J97+J101+J103","v":954},{"$f":"K85+K88+K92+K95+K97+K101+K103","v":601.9},{"$f":"L85+L88+L92+L95+L97+L101+L103","v":625.79999999999995},651]
[null,null,"1.08.03.00.0.01.0.000.110","Государственная пошлина по делам, рассматриваемым в судах общей юрисдикции, мировыми судьями","Управление Федеральной налоговой службы по Нижегородской области",null,"НЕ УКАЗАНО",562.20000000000005,501.18]
[null,null,"1.08.03.01.0.01.0.000.110","Государственная пошлина по делам, рассматриваемым в судах общей юрисдикции, мировыми судьями (за исключением Верховного Суда Российской Федерации)","Управление Федеральной налоговой службы по Нижегородской области",null,"НЕ УКАЗАНО",562.20000000000005,501.18]
[null,null,"1.08.03.01.0.01.1.000.110","Государственная пошлина по делам, рассматриваемым в судах общей юрисдикции, мировыми судьями (за исключением Верховного Суда Российской Федерации) (сумма платежа (перерасчеты, недоимка и задолженность по соответствующему платежу, в том числе по отмененному)","Управление Федеральной налоговой службы по Нижегородской области",null,"НЕ УКАЗАНО",562.20000000000005,501.18]
[null,null,"182.1.08.03.01.0.01.1.000.110","Государственная пошлина по делам, рассматриваемым в судах общей юрисдикции, мировыми судьями (за исключением Верховного Суда Российской Федерации) (сумма платежа (перерасчеты, недоимка и задолженность по соответствующему платежу, в том числе по отмененному)","Управление Федеральной налоговой службы по Нижегородской области",null,"НЕ УКАЗАНО",562.20000000000005,501.18,591,601.9,625.79999999999995,651]
[null,null,"1.08.06.00.0.01.0.000.110","Государственная пошлина за совершение действий, связанных с приобретением гражданства Российской Федерации или выходом из гражданства Российской Федерации, а также с въездом в Российскую Федерацию или выездом из Российской Федерации","Главное управление МВД России по Нижегородской области",null,"НЕ УКАЗАНО",23.9,3]
[null,null,"1.08.06.00.0.01.8.003.110","Государственная пошлина за совершение действий, связанных с приобретением гражданства Российской Федерации или выходом из гражданства Российской Федерации, а также с въездом в Российскую Федерацию или выездом из Российской Федерации (государственная пошлина за выдачу паспорта, удостоверяющего личность гражданина Российской Федерации за пределами территории Российской Федерации (при обращении через многофункциональные центры)","Главное управление МВД России по Нижегородской области",null,"НЕ УКАЗАНО",23.9,3]
[null,null,"188.1.08.06.00.0.01.8.003.110","Государственная пошлина за совершение действий, связанных с приобретением гражданства Российской Федерации или выходом из гражданства Российской Федерации, а также с въездом в Российскую Федерацию или выездом из Российской Федерации (государственная пошлина за выдачу паспорта, удостоверяющего личность гражданина Российской Федерации за пределами территории Российской Федерации (при обращении через многофункциональные центры)","Главное управление МВД России по Нижегородской области",null,"НЕ УКАЗАНО",23.9,3,3.8]
[null,null,"1.08.07.00.0.01.0.000.110","Государственная пошлина за государственную регистрацию, а также за совершение прочих юридически значимых действий",null,null,"НЕ УКАЗАНО",633.1,304.93]
[null,null,"1.08.07.02.0.01.0.000.110","Государственная пошлина за государственную регистрацию прав, ограничений (обременений) прав на недвижимое имущество и сделок с ним","Управление Федеральной службы государственной регистрации, кадастра и картографии по Нижегородской области",null,"НЕ УКАЗАНО",212.3,166.63]
[null,null,"1.08.07.02.0.01.8.000.110","Государственная пошлина за государственную регистрацию прав, ограничений (обременении) прав на недвижимое имущество и сделок с ним (при обращении через многофункциональные центры)","Управление Федеральной службы государственной регистрации, кадастра и картографии по Нижегородской области",null,"НЕ УКАЗАНО",212.3,166.63]
[null,null,"321.1.08.07.02.0.01.8.000.110","Государственная пошлина за государственную регистрацию прав, ограничений (обременении) прав на недвижимое имущество и сделок с ним (при обращении через многофункциональные центры)","Управление Федеральной службы государственной регистрации, кадастра и картографии по Нижегородской области",null,"НЕ УКАЗАНО",212.3,166.63,191]
[null,null,"1.08.07.10.0.01.0.000.110","Государственная пошлина за выдачу и обмен паспорта гражданина Российской Федерации","Главное управление МВД России по Нижегородской области",null,"НЕ УКАЗАНО",38.4,36]
[null,null,"1.08.07.10.0.01.8.034.110","Государственная пошлина за выдачу и обмен паспорта гражданина Российской Федерации (государственная пошлина за выдачу паспорта гражданина Российской Федерации (при обращении через многофункциональные центры)","Главное управление МВД России по Нижегородской области",null,"НЕ УКАЗАНО",38.4,30]
[null,null,"188.1.08.07.10.0.01.8.034.110","Государственная пошлина за выдачу и обмен паспорта гражданина Российской Федерации (государственная пошлина за выдачу паспорта гражданина Российской Федерации (при обращении через многофункциональные центры)","Главное управление МВД России по Нижегородской области",null,"НЕ УКАЗАНО",38.4,30,38]
[null,null,"1.08.07.10.0.01.8.035.110","Государственная пошлина за выдачу и обмен паспорта гражданина Российской Федерации (государственная пошлина за выдачу паспорта гражданина Российской Федерации взамен утраченного или пришедшего в негодность (при обращении через многофункциональные центры)","Главное управление МВД России по Нижегородской области",null,"НЕ УКАЗАНО",0,6]
[null,null,"188.1.08.07.10.0.01.8.035.110","Государственная пошлина за выдачу и обмен паспорта гражданина Российской Федерации (государственная пошлина за выдачу паспорта гражданина Российской Федерации взамен утраченного или пришедшего в негодность (при обращении через многофункциональные центры)","Главное управление МВД России по Нижегородской области",null,"НЕ УКАЗАНО",0,6,6.2]
[null,null,"1.08.07.14.0.01.0.000.110","Государственная пошлина за государственную регистрацию транспортных средств и иные юридически значимые действия, связанные с изменениями и выдачей документов на транспортные средства, регистрационных знаков, водительских удостоверений","Главное управление МВД России по Нижегородской области",null,"НЕ УКАЗАНО",377.4,102.3]
[null,null,"1.08.07.14.1.01.0.000.110","Государственная пошлина за государственную регистрацию транспортных средств и иные юридически значимые действия уполномоченных федеральных государственных органов, связанные с изменением и выдачей документов на транспортные средства, регистрационных знаков, водительских удостоверений","Главное управление МВД России по Нижегородской области",null,"НЕ УКАЗАНО",377.4,102.3]
[null,null,"1.08.07.14.1.01.8.000.110","Государственная пошлина за государственную регистрацию транспортных средств и иные юридически значимые действия уполномоченных федеральных государственных органов, связанные с изменением и выдачей документов на транспортные средства, регистрационных знаков, водительских удостоверений (при обращении через многофункциональные центры)","Главное управление МВД России по Нижегородской области",null,"НЕ УКАЗАНО",377.4,102.3]
[null,null,"188.1.08.07.14.1.01.8.000.110","Государственная пошлина за государственную регистрацию транспортных средств и иные юридически значимые действия уполномоченных федеральных государственных органов, связанные с изменением и выдачей документов на транспортные средства, регистрационных знаков, водительских удостоверений (при обращении через многофункциональные центры)","Главное управление МВД России по Нижегородской области",null,"НЕ УКАЗАНО",377.4,102.3,124]
[null,null,"1.08.07.15.0.01.0.000.110","Государственная пошлина за выдачу разрешения на установку рекламной конструкции","Администрация Тонкинского муниципального  района Нижегородской области",null,"НЕ УКАЗАНО",5,0]
[null,null,"487.1.08.07.15.0.01.0.000.110","Государственная пошлина за выдачу разрешения на установку рекламной конструкции","Администрация Тонкинского муниципального  района Нижегородской области",null,"НЕ УКАЗАНО",5,0]
[null,"ДОХОДЫ ОТ ИСПОЛЬЗОВАНИЯ ИМУЩЕСТВА, НАХОДЯЩЕГОСЯ В ГОСУДАРСТВЕННОЙ И МУНИЦИПАЛЬНОЙ СОБСТВЕННОСТИ","366.1.11.00.00.0.00.0.000.000","ДОХОДЫ ОТ ИСПОЛЬЗОВАНИЯ ИМУЩЕСТВА, НАХОДЯЩЕГОСЯ В ГОСУДАРСТВЕННОЙ И МУНИЦИПАЛЬНОЙ СОБСТВЕННОСТИ","Комитет по управлению муниципальным имуществом и земельными ресурсами администрации Тонкинского муниципального района Нижегородской области",null,"НЕ УКАЗАНО",2070.6,1348.74,{"$f":"J105+J117","v":1617.08},{"$f":"K105+K117","v":1827.9},{"$f":"L105+L117","v":1900.6999999999998},1976.6]
[null,"Доходы, получаемые в виде арендной либо иной платы за передачу в возмездное пользование государственного и муниципального имущества (за исключением имущества бюджетных и автономных учреждений, а также имущества государственных и муниципальных унитарных предприятий, в том числе казенных)","366.1.11.05.00.0.00.0.000.120","Доходы, получаемые в виде арендной либо иной платы за передачу в возмездное пользование государственного и муниципального имущества (за исключением имущества бюджетных и автономных учреждений, а также имущества государственных и муниципальных унитарных предприятий, в том числе казенных)","Комитет по управлению муниципальным имуществом и земельными ресурсами администрации Тонкинского муниципального района Нижегородской области",null,"НЕ УКАЗАНО",2035.6,1294.56,{"$f":"J106+J111+J114","v":1562.8999999999999},{"$f":"K106+K111+K114","v":1777.9},{"$f":"L106+L111+L114","v":1848.6999999999998},1922.5]
[null,null,"366.1.11.05.01.0.00.0.000.120","Доходы, получаемые в виде арендной платы за земельные участки, государственная собственность на которые не разграничена, а также средства от продажи права на заключение договоров аренды указанных земельных участков","Комитет по управлению муниципальным имуществом и земельными ресурсами администрации Тонкинского муниципального района Нижегородской области",null,"НЕ УКАЗАНО",1012.5,942.39,1128,1072.5,1115.5,1160.5]
[null,null,"1.11.05.01.3.05.0.000.120","Доходы, получаемые в виде арендной платы за земельные участки, государственная собственность на которые не разграничена и которые расположены в границах сельских поселений и межселенных территорий муниципальных районов, а также средства от продажи права на заключение договоров аренды указанных земельных участков","Комитет по управлению муниципальным имуществом и земельными ресурсами администрации Тонкинского муниципального района Нижегородской области",null,"НЕ УКАЗАНО",289,330.12]
[null,null,"1.11.05.01.3.05.0.000.120","Доходы, получаемые в виде арендной платы за земельные участки, государственная собственность на которые не разграничена и которые расположены в границах сельских поселений и межселенных территорий муниципальных районов, а также средства от продажи права на заключение договоров аренды указанных земельных участков","Комитет по управлению муниципальным имуществом и земельными ресурсами администрации Тонкинского муниципального района Нижегородской области",null,"НЕ УКАЗАНО",289,330.12]
[null,null,"1.11.05.01.3.13.0.000.120","Доходы, получаемые в виде арендной платы за земельные участки, государственная собственность на которые не разграничена и которые расположены в границах городских поселений, а также средства от продажи права на заключение договоров аренды указанных земельных участков","Комитет по управлению муниципальным имуществом и земельными ресурсами администрации Тонкинского муниципального района Нижегородской области",null,"НЕ УКАЗАНО",723.5,612.27]
[null,null,"1.11.05.01.3.13.0.000.120","Доходы, получаемые в виде арендной платы за земельные участки, государственная собственность на которые не разграничена и которые расположены в границах городских поселений, а также средства от продажи права на заключение договоров аренды указанных земельных участков","Комитет по управлению муниципальным имуществом и земельными ресурсами администрации Тонкинского муниципального района Нижегородской области",null,"НЕ УКАЗАНО",723.5,612.27]
[null,null,"366.1.11.05.02.0.00.0.000.120","Доходы, получаемые в виде арендной платы за земли после разграничения государственной собственности на землю, а также средства от продажи права на заключение договоров аренды указанных земельных участков (за исключением земельных участков бюджетных и автономных учреждений)","Комитет по управлению муниципальным имуществом и земельными ресурсами администрации Тонкинского муниципального района Нижегородской области",null,"НЕ УКАЗАНО",76.2,98.41,111.6,76.2,78.8,81.400000000000006]
[null,null,"1.11.05.02.5.05.0.000.120","Доходы, получаемые в виде арендной платы, а также средства от продажи права на заключение договоров аренды за земли, находящиеся в собственности муниципальных районов (за исключением земельных участков муниципальных бюджетных и автономных учреждений)","Комитет по управлению муниципальным имуществом и земельными ресурсами администрации Тонкинского муниципального района Нижегородской области",null,"НЕ УКАЗАНО",76.2,98.41]
[null,null,"1.11.05.02.5.05.0.000.120","Доходы, получаемые в виде арендной платы, а также средства от продажи права на заключение договоров аренды за земли, находящиеся в собственности муниципальных районов (за исключением земельных участков муниципальных бюджетных и автономных учреждений)","Комитет по управлению муниципальным имуществом и земельными ресурсами администрации Тонкинского муниципального района Нижегородской области",null,"НЕ УКАЗАНО",76.2,98.41]
[null,null,"366.1.11.05.07.0.00.0.000.120","Доходы от сдачи в аренду имущества, составляющего государственную (муниципальную) казну (за исключением земельных участков)","Комитет по управлению муниципальным имуществом и земельными ресурсами администрации Тонкинского муниципального района Нижегородской области",null,"НЕ УКАЗАНО",946.9,253.76,323.3,629.20000000000005,654.4,680.6]
[null,null,"1.11.05.07.5.05.0.000.120","Доходы от сдачи в аренду имущества, составляющего казну муниципальных районов (за исключением земельных участков)","Комитет по управлению муниципальным имуществом и земельными ресурсами администрации Тонкинского муниципального района Нижегородской области",null,"НЕ УКАЗАНО",946.9,253.76]
[null,null,"1.11.05.07.5.05.0.000.120","Доходы от сдачи в аренду имущества, составляющего казну муниципальных районов (за исключением земельных участков)","Комитет по управлению муниципальным имуществом и земельными ресурсами администрации Тонкинского муниципального района Нижегородской области",null,"НЕ УКАЗАНО",946.9,253.76]
[null,"Платежи от государственных и муниципальных унитарных предприятий","366.1.11.07.00.0.00.0.000.120","Платежи от государственных и муниципальных унитарных предприятий","Комитет по управлению муниципальным имуществом и земельными ресурсами администрации Тонкинского муниципального района Нижегородской области",null,"НЕ УКАЗАНО",35,54.18,{"$f":"J118","v":54.18},{"$f":"K118","v":50},{"$f":"L118","v":52},54.1]
[null,null,"366.1.11.07.01.0.00.0.000.120","Доходы от перечисления части прибыли государственных и муниципальных унитарных предприятий, остающейся после уплаты налогов и обязательных платежей","Комитет по управлению муниципальным имуществом и земельными ресурсами администрации Тонкинского муниципального района Нижегородской области",null,"НЕ УКАЗАНО",35,54.18,54.18,50,52,54.1]
[null,null,"1.11.07.01.5.05.0.000.120","Доходы от перечисления части прибыли, остающейся после уплаты налогов и иных обязательных платежей муниципальных унитарных предприятий, созданных муниципальными районами","Комитет по управлению муниципальным имуществом и земельными ресурсами администрации Тонкинского муниципального района Нижегородской области",null,"НЕ УКАЗАНО",35,54.18]
[null,null,"1.11.07.01.5.05.0.000.120","Доходы от перечисления части прибыли, остающейся после уплаты налогов и иных обязательных платежей муниципальных унитарных предприятий, созданных муниципальными районами","Комитет по управлению муниципальным имуществом и земельными ресурсами администрации Тонкинского муниципального района Нижегородской области",null,"НЕ УКАЗАНО",35,54.18]
[null,"ПЛАТЕЖИ ПРИ ПОЛЬЗОВАНИИ ПРИРОДНЫМИ РЕСУРСАМИ","048.1.12.00.00.0.00.0.000.000","ПЛАТЕЖИ ПРИ ПОЛЬЗОВАНИИ ПРИРОДНЫМИ РЕСУРСАМИ","Федеральная служба по надзору в сфере природопользования",null,"НЕ УКАЗАНО",80.5,54.86,{"$f":"J122","v":65},{"$f":"K122","v":79.099999999999994},{"$f":"L122","v":82.3},85.6]
[null,"Плата за негативное воздействие на окружающую среду","048.1.12.01.00.0.01.0.000.120","Плата за негативное воздействие на окружающую среду","Федеральная служба по надзору в сфере природопользования",null,"НЕ УКАЗАНО",80.5,54.86,{"$f":"J123+J126+J129","v":65},{"$f":"K123+K126+K129","v":79.099999999999994},{"$f":"L123+L126+L129","v":82.3},85.6]
[null,null,"048.1.12.01.01.0.01.0.000.120","Плата за выбросы загрязняющих веществ в атмосферный воздух стационарными объектами","Федеральная служба по надзору в сфере природопользования",null,"НЕ УКАЗАНО",31.6,63.44,73.58,79.099999999999994,82.3,85.6]
[null,null,"1.12.01.01.0.01.6.000.120","Плата за выбросы загрязняющих веществ в атмосферный воздух стационарными объектами (федеральные государственные органы, Банк России, органы управления государственными внебюджетными фондами Российской Федерации)","Федеральная служба по надзору в сфере природопользования",null,"НЕ УКАЗАНО",31.6,63.44]
[null,null,"1.12.01.01.0.01.6.000.120","Плата за выбросы загрязняющих веществ в атмосферный воздух стационарными объектами (федеральные государственные органы, Банк России, органы управления государственными внебюджетными фондами Российской Федерации)","Федеральная служба по надзору в сфере природопользования",null,"НЕ УКАЗАНО",31.6,63.44]
[null,null,"048.1.12.01.03.0.01.0.000.120","Плата за сбросы загрязняющих веществ в водные объекты","Федеральная служба по надзору в сфере природопользования",null,"НЕ УКАЗАНО",36.4,-1.72,-1.72]
[null,null,"1.12.01.03.0.01.6.000.120","Плата за сбросы загрязняющих веществ в водные объекты (федеральные государственные органы, Банк России, органы управления государственными внебюджетными фондами Российской Федерации)","Федеральная служба по надзору в сфере природопользования",null,"НЕ УКАЗАНО",36.4,-1.72]
[null,null,"1.12.01.03.0.01.6.000.120","Плата за сбросы загрязняющих веществ в водные объекты (федеральные государственные органы, Банк России, органы управления государственными внебюджетными фондами Российской Федерации)","Федеральная служба по надзору в сфере природопользования",null,"НЕ УКАЗАНО",36.4,-1.72]
[null,null,"048.1.12.01.04.0.01.0.000.120","Плата за размещение отходов производства и потребления","Федеральная служба по надзору в сфере природопользования",null,"НЕ УКАЗАНО",12.5,-6.86,-6.86]
[null,null,"1.12.01.04.1.01.0.000.120","Плата за размещение отходов производства","Федеральная служба по надзору в сфере природопользования",null,"НЕ УКАЗАНО",12.3,-6.86]
[null,null,"1.12.01.04.1.01.6.000.120","Плата за размещение отходов производства (федеральные государственные органы, Банк России, органы управления государственными внебюджетными фондами Российской Федерации)","Федеральная служба по надзору в сфере природопользования",null,"НЕ УКАЗАНО",12.3,-6.86]
[null,null,"1.12.01.04.1.01.6.000.120","Плата за размещение отходов производства (федеральные государственные органы, Банк России, органы управления государственными внебюджетными фондами Российской Федерации)","Федеральная служба по надзору в сфере природопользования",null,"НЕ УКАЗАНО",12.3,-6.86]
[null,null,"1.12.01.04.2.01.0.000.120","Плата за размещение твердых коммунальных отходов","Федеральная служба по надзору в сфере природопользования",null,"НЕ УКАЗАНО",0.2,0]
[null,null,"1.12.01.04.2.01.6.000.120","Плата за размещение твердых коммунальных отходов (федеральные государственные органы, Банк России, органы управления государственными внебюджетными фондами Российской Федерации)","Федеральная служба по надзору в сфере природопользования",null,"НЕ УКАЗАНО",0.2,0]
[null,null,"1.12.01.04.2.01.6.000.120","Плата за размещение твердых коммунальных отходов (федеральные государственные органы, Банк России, органы управления государственными внебюджетными фондами Российской Федерации)","Федеральная служба по надзору в сфере природопользования",null,"НЕ УКАЗАНО",0.2,0]
[null,"ДОХОДЫ ОТ ОКАЗАНИЯ ПЛАТНЫХ УСЛУГ И КОМПЕНСАЦИИ ЗАТРАТ ГОСУДАРСТВА","074.1.13.00.00.0.00.0.000.000","ДОХОДЫ ОТ ОКАЗАНИЯ ПЛАТНЫХ УСЛУГ И КОМПЕНСАЦИИ ЗАТРАТ ГОСУДАРСТВА","Управление образования и молодёжной политики администрации Тонкинского муниципального района Нижегородской области",null,"НЕ УКАЗАНО",0,13.72,{"$f":"J137","v":13.72},{"$f":"K137+K138","v":0},{"$f":"L137+L138","v":0},0]
[null,"Доходы от компенсации затрат государства","074.1.13.02.00.0.00.0.000.130","Доходы от компенсации затрат государства","Управление образования и молодёжной политики администрации Тонкинского муниципального района Нижегородской области",null,"НЕ УКАЗАНО",0,13.72,13.72]
[null,null,"074.1.13.02.99.0.00.0.000.130","Прочие доходы от компенсации затрат государства","Управление образования и молодёжной политики администрации Тонкинского муниципального района Нижегородской области",null,"НЕ УКАЗАНО",0,13.72,13.72]
[null,null,"1.13.02.99.5.05.0.000.130","Прочие доходы от компенсации затрат бюджетов муниципальных районов","Управление образования и молодёжной политики администрации Тонкинского муниципального района Нижегородской области",null,"НЕ УКАЗАНО",0,13.72]
[null,null,"1.13.02.99.5.05.0.013.130","Прочие доходы от компенсации затрат бюджетов муниципальных районов, источником которых являются средства районного бюджета","Управление образования и молодёжной политики администрации Тонкинского муниципального района Нижегородской области",null,"НЕ УКАЗАНО",0,13.72]
[null,null,"1.13.02.99.5.05.0.013.130","Прочие доходы от компенсации затрат бюджетов муниципальных районов, источником которых являются средства районного бюджета","Управление образования и молодёжной политики администрации Тонкинского муниципального района Нижегородской области",null,"НЕ УКАЗАНО",0,13.72]
[null,"ДОХОДЫ ОТ ПРОДАЖИ МАТЕРИАЛЬНЫХ И НЕМАТЕРИАЛЬНЫХ АКТИВОВ","366.1.14.00.00.0.00.0.000.000","ДОХОДЫ ОТ ПРОДАЖИ МАТЕРИАЛЬНЫХ И НЕМАТЕРИАЛЬНЫХ АКТИВОВ","Комитет по управлению муниципальным имуществом и земельными ресурсами администрации Тонкинского муниципального района Нижегородской области",null,"НЕ УКАЗАНО",150,4084.45,{"$f":"J143","v":4084.45},{"$f":"K143","v":100},{"$f":"L143","v":90},81]
[null,"Доходы от реализации имущества, находящегося в государственной и муниципальной собственности (за исключением движимого имущества бюджетных и автономных учреждений, а также имущества государственных и муниципальных унитарных предприятий, в том числе казенных)","366.1.14.02.00.0.00.0.000.000","Доходы от реализации имущества, находящегося в государственной и муниципальной собственности (за исключением движимого имущества бюджетных и автономных учреждений, а также имущества государственных и муниципальных унитарных предприятий, в том числе казенных)","Комитет по управлению муниципальным имуществом и земельными ресурсами администрации Тонкинского муниципального района Нижегородской области",null,"НЕ УКАЗАНО",50,4084.45,4084.45,100,90,81]
[null,null,"366.1.14.02.05.0.05.0.000.410","Доходы от реализации имущества, находящегося в собственности муниципальных районов (за исключением движимого имущества муниципальных бюджетных и автономных учреждений, а также имущества муниципальных унитарных предприятий, в том числе казенных), в части реализации основных средств по указанному имуществу","Комитет по управлению муниципальным имуществом и земельными ресурсами администрации Тонкинского муниципального района Нижегородской области",null,"НЕ УКАЗАНО",50,4084.45,4084.45,100,90,81]
[null,null,"1.14.02.05.3.05.0.000.410","Доходы от реализации иного имущества, находящегося в собственности муниципальных районов (за исключением имущества муниципальных бюджетных и автономных учреждений, а также имущества муниципальных унитарных предприятий, в том числе казенных), в части реализации основных средств по указанному имуществу","Комитет по управлению муниципальным имуществом и земельными ресурсами администрации Тонкинского муниципального района Нижегородской области",null,"НЕ УКАЗАНО",50,4084.45]
[null,null,"1.14.02.05.3.05.0.000.410","Доходы от реализации иного имущества, находящегося в собственности муниципальных районов (за исключением имущества муниципальных бюджетных и автономных учреждений, а также имущества муниципальных унитарных предприятий, в том числе казенных), в части реализации основных средств по указанному имуществу","Комитет по управлению муниципальным имуществом и земельными ресурсами администрации Тонкинского муниципального района Нижегородской области",null,"НЕ УКАЗАНО",50,4084.45]
[null,"Доходы от продажи земельных участков, находящихся в государственной и муниципальной собственности","366.1.14.06.00.0.00.0.000.430","Доходы от продажи земельных участков, находящихся в государственной и муниципальной собственности","Комитет по управлению муниципальным имуществом и земельными ресурсами администрации Тонкинского муниципального района Нижегородской области",null,"НЕ УКАЗАНО",100,0,{"$f":"J148","v":0},{"$f":"K148","v":25},{"$f":"L148","v":22.5},20.2]
[null,null,"366.1.14.06.01.0.00.0.000.430","Доходы от продажи земельных участков, государственная собственность на которые не разграничена","Комитет по управлению муниципальным имуществом и земельными ресурсами администрации Тонкинского муниципального района Нижегородской области",null,"НЕ УКАЗАНО",100,0,0,25,22.5,20.2]
[null,null,"1.14.06.01.3.13.0.000.430","Доходы от продажи земельных участков, государственная собственность на которые не разграничена и которые расположены в границах городских поселений","Комитет по управлению муниципальным имуществом и земельными ресурсами администрации Тонкинского муниципального района Нижегородской области",null,"НЕ УКАЗАНО",100,0]
[null,null,"1.14.06.01.3.13.0.000.430","Доходы от продажи земельных участков, государственная собственность на которые не разграничена и которые расположены в границах городских поселений","Комитет по управлению муниципальным имуществом и земельными ресурсами администрации Тонкинского муниципального района Нижегородской области",null,"НЕ УКАЗАНО",100,0]
[null,"ШТРАФЫ, САНКЦИИ, ВОЗМЕЩЕНИЕ УЩЕРБА","000.1.16.00.00.0.00.0.000.000","ШТРАФЫ, САНКЦИИ, ВОЗМЕЩЕНИЕ УЩЕРБА",null,null,"НЕ УКАЗАНО",72.900000000000006,92.91,{"$f":"J156+J160+J164+J168+J170+J172+J176+J178+J180+J184+J185+J187+J188+J192+J196+J200+J202","v":108},{"$f":"K156+K160+K164+K168+K170+K172+K176+K178+K180+K184+K185+K187+K188+K192+K196+K200+K202","v":85.9},{"$f":"L156+L160+L164+L168+L170+L172+L176+L178+L180+L184+L185+L187+L188+L192+L196+L200+L202","v":89.3},92.899999999999991]
[null,null,"1.16.01.00.0.01.0.000.140","Административные штрафы, установленные Кодексом Российской Федерации об административных правонарушениях",null,null,"НЕ УКАЗАНО",37.9,90.45]
[null,null,"1.16.01.05.0.01.0.000.140","Административные штрафы, установленные Главой 5 Кодекса Российской Федерации об административных правонарушениях, за административные правонарушения, посягающие на права граждан","Министерство социальной политики Нижегородской области",null,"НЕ УКАЗАНО",0,0.5]
[null,null,"1.16.01.05.3.01.0.000.140","Административные штрафы, установленные Главой 5 Кодекса Российской Федерации об административных правонарушениях, за административные правонарушения, посягающие на права граждан, налагаемые мировыми судьями, комиссиями по делам несовершеннолетних и защите их прав","Министерство социальной политики Нижегородской области",null,"НЕ УКАЗАНО",0,0.5]
[null,null,"1.16.01.05.3.01.0.035.140","Административные штрафы, установленные Главой 5 Кодекса Российской Федерации об административных правонарушениях, за административные правонарушения, посягающие на права граждан, налагаемые мировыми судьями, комиссиями по делам несовершеннолетних и защите их прав ( штрафы за неисполнение родителями или иными законными представителями несовершеннолетних обязанностей по содержанию и воспитанию несовершеннолетних)","Министерство социальной политики Нижегородской области",null,"НЕ УКАЗАНО",0,0.5]
[null,null,"150.1.16.01.05.3.01.0.035.140","Административные штрафы, установленные Главой 5 Кодекса Российской Федерации об административных правонарушениях, за административные правонарушения, посягающие на права граждан, налагаемые мировыми судьями, комиссиями по делам несовершеннолетних и защите их прав ( штрафы за неисполнение родителями или иными законными представителями несовершеннолетних обязанностей по содержанию и воспитанию несовершеннолетних)","Министерство социальной политики Нижегородской области",null,"НЕ УКАЗАНО",0,0.5,0.5]
[null,null,"1.16.01.06.0.01.0.000.140","Административные штрафы, установленные Главой 6 Кодекса Российской Федерации об административных правонарушениях, за административные правонарушения, посягающие на здоровье, санитарно-эпидемиологическое благополучие населения и общественную нравственность","Министерство социальной политики Нижегородской области",null,"НЕ УКАЗАНО",0,0.25]
[null,null,"1.16.01.06.3.01.0.000.140","Административные штрафы, установленные Главой 6 Кодекса Российской Федерации об административных правонарушениях, за административные правонарушения, посягающие на здоровье, санитарно-эпидемиологическое благополучие населения и общественную нравственность, налагаемые мировыми судьями, комиссиями по делам несовершеннолетних и защите их прав","Министерство социальной политики Нижегородской области",null,"НЕ УКАЗАНО",0,0.25]
[null,null,"1.16.01.06.3.01.0.023.140","Административные штрафы, установленные Главой 6 Кодекса Российской Федерации об административных правонарушениях, за административные правонарушения, посягающие на здоровье, санитарно-эпидемиологическое благополучие населения и общественную нравственность, налагаемые мировыми судьями, комиссиями по делам несовершеннолетних и защите их прав ( штрафы за вовлечение несовершеннолетнего в процесс потребления табака)","Министерство социальной политики Нижегородской области",null,"НЕ УКАЗАНО",0,0.25]
[null,null,"150.1.16.01.06.3.01.0.023.140","Административные штрафы, установленные Главой 6 Кодекса Российской Федерации об административных правонарушениях, за административные правонарушения, посягающие на здоровье, санитарно-эпидемиологическое благополучие населения и общественную нравственность, налагаемые мировыми судьями, комиссиями по делам несовершеннолетних и защите их прав ( штрафы за вовлечение несовершеннолетнего в процесс потребления табака)","Министерство социальной политики Нижегородской области",null,"НЕ УКАЗАНО",0,0.25,0.25]
[null,null,"1.16.01.08.0.01.0.000.140","Административные штрафы, установленные Главой 8 Кодекса Российской Федерации об административных правонарушениях, за административные правонарушения в области охраны окружающей среды и природопользования","Управление по обеспечению деятельности мировых судей, адвокатуры и нотариата Нижегородской области",null,"НЕ УКАЗАНО",0,69.5]
[null,null,"1.16.01.08.3.01.0.000.140","Административные штрафы, установленные Главой 8 Кодекса Российской Федерации об административных правонарушениях, за административные правонарушения в области охраны окружающей среды и природопользования, налагаемые мировыми судьями, комиссиями по делам несовершеннолетних и защите их прав","Управление по обеспечению деятельности мировых судей, адвокатуры и нотариата Нижегородской области",null,"НЕ УКАЗАНО",0,69.5]
[null,null,"1.16.01.08.3.01.0.281.140","Административные штрафы, установленные Главой 8 Кодекса Российской Федерации об административных правонарушениях, за административные правонарушения в области охраны окружающей среды и природопользования, налагаемые мировыми судьями, комиссиями по делам несовершеннолетних и защите их прав","Управление по обеспечению деятельности мировых судей, адвокатуры и нотариата Нижегородской области",null,"НЕ УКАЗАНО",0,69.5]
[null,null,"218.1.16.01.08.3.01.0.281.140","Административные штрафы, установленные Главой 8 Кодекса Российской Федерации об административных правонарушениях, за административные правонарушения в области охраны окружающей среды и природопользования, налагаемые мировыми судьями, комиссиями по делам несовершеннолетних и защите их прав","Управление по обеспечению деятельности мировых судей, адвокатуры и нотариата Нижегородской области",null,"НЕ УКАЗАНО",0,69.5,83.59,60.8,63.4,66]
[null,null,"1.16.01.15.0.01.0.000.140","Административные штрафы, установленные Главой 15 Кодекса Российской Федерации об административных правонарушениях, за административные правонарушения в области финансов, налогов и сборов, страхования, рынка ценных бумаг","Управление по обеспечению деятельности мировых судей, адвокатуры и нотариата Нижегородской области",null,"НЕ УКАЗАНО",0,1.5]
[null,null,"1.16.01.15.3.01.0.000.140","Административные штрафы, установленные Главой 15 Кодекса Российской Федерации об административных правонарушениях, за административные правонарушения в области финансов, налогов и сборов, страхования, рынка ценных бумаг (за исключением штрафов, указанных в пункте 6 статьи 46 Бюджетного кодекса Российской Федерации), налагаемые мировыми судьями, комиссиями по делам несовершеннолетних и защите их прав","Управление по обеспечению деятельности мировых судей, адвокатуры и нотариата Нижегородской области",null,"НЕ УКАЗАНО",0,1.5]
[null,null,"1.16.01.15.3.01.0.005.140","Административные штрафы, установленные Главой 15 Кодекса Российской Федерации об административных правонарушениях, за административные правонарушения в области финансов, налогов и сборов, страхования, рынка ценных бумаг (за исключением штрафов, указанных в пункте 6 статьи 46 Бюджетного кодекса Российской Федерации), налагаемые мировыми судьями, комиссиями по делам несовершеннолетних и защите их прав","Управление по обеспечению деятельности мировых судей, адвокатуры и нотариата Нижегородской области",null,"НЕ УКАЗАНО",0,0.3]
[null,null,"218.1.16.01.15.3.01.0.005.140","Административные штрафы, установленные Главой 15 Кодекса Российской Федерации об административных правонарушениях, за административные правонарушения в области финансов, налогов и сборов, страхования, рынка ценных бумаг (за исключением штрафов, указанных в пункте 6 статьи 46 Бюджетного кодекса Российской Федерации), налагаемые мировыми судьями, комиссиями по делам несовершеннолетних и защите их прав","Управление по обеспечению деятельности мировых судей, адвокатуры и нотариата Нижегородской области",null,"НЕ УКАЗАНО",0,0.3,0.3]
[null,null,"1.16.01.15.3.01.0.006.140","Административные штрафы, установленные Главой 15 Кодекса Российской Федерации об административных правонарушениях, за административные правонарушения в области финансов, налогов и сборов, страхования, рынка ценных бумаг (за исключением штрафов, указанных в пункте 6 статьи 46 Бюджетного кодекса Российской Федерации), налагаемые мировыми судьями, комиссиями по делам несовершеннолетних и защите их прав","Управление по обеспечению деятельности мировых судей, адвокатуры и нотариата Нижегородской области",null,"НЕ УКАЗАНО",0,0.75]
[null,null,"218.1.16.01.15.3.01.0.006.140","Административные штрафы, установленные Главой 15 Кодекса Российской Федерации об административных правонарушениях, за административные правонарушения в области финансов, налогов и сборов, страхования, рынка ценных бумаг (за исключением штрафов, указанных в пункте 6 статьи 46 Бюджетного кодекса Российской Федерации), налагаемые мировыми судьями, комиссиями по делам несовершеннолетних и защите их прав","Управление по обеспечению деятельности мировых судей, адвокатуры и нотариата Нижегородской области",null,"НЕ УКАЗАНО",0,0.75,0.75]
[null,null,"1.16.01.15.3.01.9.000.140","Административные штрафы, установленные Главой 15 Кодекса Российской Федерации об административных правонарушениях, за административные правонарушения в области финансов, налогов и сборов, страхования, рынка ценных бумаг (за исключением штрафов, указанных в пункте 6 статьи 46 Бюджетного кодекса Российской Федерации), налагаемые мировыми судьями, комиссиями по делам несовершеннолетних и защите их прав","Управление по обеспечению деятельности мировых судей, адвокатуры и нотариата Нижегородской области",null,"НЕ УКАЗАНО",0,0.45]
[null,null,"218.1.16.01.15.3.01.9.000.140","Административные штрафы, установленные Главой 15 Кодекса Российской Федерации об административных правонарушениях, за административные правонарушения в области финансов, налогов и сборов, страхования, рынка ценных бумаг (за исключением штрафов, указанных в пункте 6 статьи 46 Бюджетного кодекса Российской Федерации), налагаемые мировыми судьями, комиссиями по делам несовершеннолетних и защите их прав","Управление по обеспечению деятельности мировых судей, адвокатуры и нотариата Нижегородской области",null,"НЕ УКАЗАНО",0,0.45,0.45]
[null,null,"1.16.01.19.0.01.0.000.140","Административные штрафы, установленные Главой 19 Кодекса Российской Федерации об административных правонарушениях, за административные правонарушения против порядка управления","Управление по обеспечению деятельности мировых судей, адвокатуры и нотариата Нижегородской области",null,"НЕ УКАЗАНО",0,10.65]
[null,null,"1.16.01.19.3.01.0.000.140","Административные штрафы, установленные Главой 19 Кодекса Российской Федерации об административных правонарушениях, за административные правонарушения против порядка управления, налагаемые мировыми судьями, комиссиями по делам несовершеннолетних и защите их прав","Управление по обеспечению деятельности мировых судей, адвокатуры и нотариата Нижегородской области",null,"НЕ УКАЗАНО",0,10.65]
[null,null,"1.16.01.19.3.01.0.005.140","Административные штрафы, установленные Главой 19 Кодекса Российской Федерации об административных правонарушениях, за административные правонарушения против порядка управления, налагаемые мировыми судьями, комиссиями по делам несовершеннолетних и защите их прав","Управление по обеспечению деятельности мировых судей, адвокатуры и нотариата Нижегородской области",null,"НЕ УКАЗАНО",0,9]
[null,null,"218.1.16.01.19.3.01.0.005.140","Административные штрафы, установленные Главой 19 Кодекса Российской Федерации об административных правонарушениях, за административные правонарушения против порядка управления, налагаемые мировыми судьями, комиссиями по делам несовершеннолетних и защите их прав","Управление по обеспечению деятельности мировых судей, адвокатуры и нотариата Нижегородской области",null,"НЕ УКАЗАНО",0,9,9,11,11.6,12.1]
[null,null,"1.16.01.19.3.01.0.007.140","Административные штрафы, установленные Главой 19 Кодекса Российской Федерации об административных правонарушениях, за административные правонарушения против порядка управления, налагаемые мировыми судьями, комиссиями по делам несовершеннолетних и защите их прав","Управление по обеспечению деятельности мировых судей, адвокатуры и нотариата Нижегородской области",null,"НЕ УКАЗАНО",0,0.15]
[null,null,"218.1.16.01.19.3.01.0.007.140","Административные штрафы, установленные Главой 19 Кодекса Российской Федерации об административных правонарушениях, за административные правонарушения против порядка управления, налагаемые мировыми судьями, комиссиями по делам несовершеннолетних и защите их прав","Управление по обеспечению деятельности мировых судей, адвокатуры и нотариата Нижегородской области",null,"НЕ УКАЗАНО",0,0.15,0.15]
[null,null,"1.16.01.19.3.01.0.021.140","Административные штрафы, установленные Главой 19 Кодекса Российской Федерации об административных правонарушениях, за административные правонарушения против порядка управления, налагаемые мировыми судьями, комиссиями по делам несовершеннолетних и защите их прав","Управление по обеспечению деятельности мировых судей, адвокатуры и нотариата Нижегородской области",null,"НЕ УКАЗАНО",0,1.5]
[null,null,"218.1.16.01.19.3.01.0.021.140","Административные штрафы, установленные Главой 19 Кодекса Российской Федерации об административных правонарушениях, за административные правонарушения против порядка управления, налагаемые мировыми судьями, комиссиями по делам несовершеннолетних и защите их прав","Управление по обеспечению деятельности мировых судей, адвокатуры и нотариата Нижегородской области",null,"НЕ УКАЗАНО",0,1.5,1.5]
[null,null,"1.16.01.20.0.01.0.000.140","Административные штрафы, установленные Главой 20 Кодекса Российской Федерации об административных правонарушениях, за административные правонарушения, посягающие на общественный порядок и общественную безопасность",null,null,"НЕ УКАЗАНО",37.9,8.0500000000000007]
[null,null,"1.16.01.20.3.01.0.000.140","Административные штрафы, установленные Главой 20 Кодекса Российской Федерации об административных правонарушениях, за административные правонарушения, посягающие на общественный порядок и общественную безопасность, налагаемые мировыми судьями, комиссиями по делам несовершеннолетних и защите их прав",null,null,"НЕ УКАЗАНО",37.9,8.0500000000000007]
[null,null,"1.16.01.20.3.01.0.021.140","Административные штрафы, установленные Главой 20 Кодекса Российской Федерации об административных правонарушениях, за административные правонарушения, посягающие на общественный порядок и общественную безопасность, налагаемые мировыми судьями, комиссиями по делам несовершеннолетних и защите их прав ( штрафы за появление в общественных местах в состоянии опьянения)",null,null,"НЕ УКАЗАНО",0,1.35]
[null,null,"150.1.16.01.20.3.01.0.021.140","Административные штрафы, установленные Главой 20 Кодекса Российской Федерации об административных правонарушениях, за административные правонарушения, посягающие на общественный порядок и общественную безопасность, налагаемые мировыми судьями, комиссиями по делам несовершеннолетних и защите их прав ( штрафы за появление в общественных местах в состоянии опьянения)","Министерство социальной политики Нижегородской области",null,"НЕ УКАЗАНО",0,0.85,0.85]
[null,null,"218.1.16.01.20.3.01.0.021.140","Административные штрафы, установленные Главой 20 Кодекса Российской Федерации об административных правонарушениях, за административные правонарушения, посягающие на общественный порядок и общественную безопасность, налагаемые мировыми судьями, комиссиями по делам несовершеннолетних и защите их прав ( штрафы за появление в общественных местах в состоянии опьянения)","Управление по обеспечению деятельности мировых судей, адвокатуры и нотариата Нижегородской области",null,"НЕ УКАЗАНО",0,0.5,0.5]
[null,null,"1.16.01.20.3.01.9.000.140","Административные штрафы, установленные Главой 20 Кодекса Российской Федерации об административных правонарушениях, за административные правонарушения, посягающие на общественный порядок и общественную безопасность, налагаемые мировыми судьями, комиссиями по делам несовершеннолетних и защите их прав ( иные штрафы)",null,null,"НЕ УКАЗАНО",37.9,6.7]
[null,null,"150.1.16.01.20.3.01.9.000.140","Административные штрафы, установленные Главой 20 Кодекса Российской Федерации об административных правонарушениях, за административные правонарушения, посягающие на общественный порядок и общественную безопасность, налагаемые мировыми судьями, комиссиями по делам несовершеннолетних и защите их прав ( иные штрафы)","Министерство социальной политики Нижегородской области",null,"НЕ УКАЗАНО",37.9,1.65,1.65,5.9,6.3,6.5]
[null,null,"218.1.16.01.20.3.01.9.000.140","Административные штрафы, установленные Главой 20 Кодекса Российской Федерации об административных правонарушениях, за административные правонарушения, посягающие на общественный порядок и общественную безопасность, налагаемые мировыми судьями, комиссиями по делам несовершеннолетних и защите их прав ( иные штрафы)","Управление по обеспечению деятельности мировых судей, адвокатуры и нотариата Нижегородской области",null,"НЕ УКАЗАНО",0,5.05,5.05,8.1999999999999993,8,8.3000000000000007]
[null,null,"1.16.07.00.0.01.0.000.140","Штрафы, неустойки, пени, уплаченные в соответствии с законом или договором в случае неисполнения или ненадлежащего исполнения обязательств перед государственным (муниципальным) органом, органом управления государственным внебюджетным фондом, казенным учреждением, Центральным банком Российской Федерации, иной организацией, действующей от имени Российской Федерации","Отдел архитектуры и строительства администрации Тонкинского муниципального района Нижегородской области",null,"НЕ УКАЗАНО",35,0]
[null,null,"1.16.07.01.0.00.0.000.140","Штрафы, неустойки, пени, уплаченные в случае просрочки исполнения поставщиком (подрядчиком, исполнителем) обязательств, предусмотренных государственным (муниципальным) контрактом","Отдел архитектуры и строительства администрации Тонкинского муниципального района Нижегородской области",null,"НЕ УКАЗАНО",35,0]
[null,null,"1.16.07.01.0.05.0.000.140","Штрафы, неустойки, пени, уплаченные в случае просрочки исполнения поставщиком (подрядчиком, исполнителем) обязательств, предусмотренных муниципальным контрактом, заключенным муниципальным органом, казенным учреждением муниципального района","Отдел архитектуры и строительства администрации Тонкинского муниципального района Нижегородской области",null,"НЕ УКАЗАНО",35,0]
[null,null,"131.1.16.07.01.0.05.0.000.140","Штрафы, неустойки, пени, уплаченные в случае просрочки исполнения поставщиком (подрядчиком, исполнителем) обязательств, предусмотренных муниципальным контрактом, заключенным муниципальным органом, казенным учреждением муниципального района","Отдел архитектуры и строительства администрации Тонкинского муниципального района Нижегородской области",null,"НЕ УКАЗАНО",35,0]
[null,null,"1.16.10.00.0.00.0.000.140","Платежи в целях возмещения причиненного ущерба (убытков)",null,null,"НЕ УКАЗАНО",0,2.46]
[null,null,"1.16.10.03.0.05.0.000.140","Платежи по искам о возмещении ущерба, а также платежи, уплачиваемые при добровольном возмещении ущерба, причиненного муниципальному имуществу муниципального района (за исключением имущества, закрепленного за муниципальными бюджетными (автономными) учреждениями, унитарными предприятиями)","Комитет по управлению муниципальным имуществом и земельными ресурсами администрации Тонкинского муниципального района Нижегородской области",null,"НЕ УКАЗАНО",0,2.16]
[null,null,"1.16.10.03.2.05.0.000.140","Прочее возмещение ущерба, причиненного муниципальному имуществу муниципального района (за исключением имущества, закрепленного за муниципальными бюджетными (автономными) учреждениями, унитарными предприятиями)","Комитет по управлению муниципальным имуществом и земельными ресурсами администрации Тонкинского муниципального района Нижегородской области",null,"НЕ УКАЗАНО",0,2.16]
[null,null,"366.1.16.10.03.2.05.0.000.140","Прочее возмещение ущерба, причиненного муниципальному имуществу муниципального района (за исключением имущества, закрепленного за муниципальными бюджетными (автономными) учреждениями, унитарными предприятиями)","Комитет по управлению муниципальным имуществом и земельными ресурсами администрации Тонкинского муниципального района Нижегородской области",null,"НЕ УКАЗАНО",0,2.16,2.16]
[null,null,"1.16.10.12.0.00.0.000.140","Доходы от денежных взысканий (штрафов), поступающие в счет погашения задолженности, образовавшейся до 1 января 2020 года, подлежащие зачислению в бюджеты бюджетной системы Российской Федерации, по нормативам, действующим до 1 января 2020 года",null,null,"НЕ УКАЗАНО",0,0.3]
[null,null,"1.16.10.12.3.01.0.000.140","Доходы от денежных взысканий (штрафов), поступающие в счет погашения задолженности, образовавшейся до 1 января 2020 года, подлежащие зачислению в бюджет муниципального образования по нормативам, действующим до 1 января 2020 года",null,null,"НЕ УКАЗАНО",0,0.3]
[null,null,"1.16.10.12.3.01.0.000.140","Доходы от денежных взысканий (штрафов), поступающие в счет погашения задолженности, образовавшейся до 1 января 2020 года, подлежащие зачислению в бюджет муниципального образования по нормативам, действующим до 1 января 2020 года","Администрация Тонкинского муниципального  района Нижегородской области",null,"НЕ УКАЗАНО",0,1.3]
[null,null,"487.1.16.10.12.3.01.0.000.140","Доходы от денежных взысканий (штрафов), поступающие в счет погашения задолженности, образовавшейся до 1 января 2020 года, подлежащие зачислению в бюджет муниципального образования по нормативам, действующим до 1 января 2020 года","Администрация Тонкинского муниципального  района Нижегородской области",null,"НЕ УКАЗАНО",0,1.3,1.3]
[null,null,"1.16.10.12.3.01.0.005.140","Доходы от денежных взысканий (штрафов), поступающие в счет погашения задолженности, образовавшейся до 1 января 2020 года, подлежащие зачислению в бюджет муниципального образования по нормативам, действовавшим в 2019 году","Генеральная прокуратура Российской Федерации",null,"НЕ УКАЗАНО",0,-1]
[null,null,"415.1.16.10.12.3.01.0.005.140","Доходы от денежных взысканий (штрафов), поступающие в счет погашения задолженности, образовавшейся до 1 января 2020 года, подлежащие зачислению в бюджет муниципального образования по нормативам, действовавшим в 2019 году","Генеральная прокуратура Российской Федерации",null,"НЕ УКАЗАНО",0,-1]
[null,"ПРОЧИЕ НЕНАЛОГОВЫЕ ДОХОДЫ","366.1.17.00.00.0.00.0.000.000","ПРОЧИЕ НЕНАЛОГОВЫЕ ДОХОДЫ","Комитет по управлению муниципальным имуществом и земельными ресурсами администрации Тонкинского муниципального района Нижегородской области",null,"НЕ УКАЗАНО",30,27.22,{"$f":"J204","v":32.5},{"$f":"K204","v":30},{"$f":"L204","v":31.2},32.4]
[null,"Прочие неналоговые доходы","366.1.17.05.00.0.00.0.000.180","Прочие неналоговые доходы","Комитет по управлению муниципальным имуществом и земельными ресурсами администрации Тонкинского муниципального района Нижегородской области",null,"НЕ УКАЗАНО",30,27.22,32.5,{"$f":"K205","v":30},{"$f":"L205","v":31.2},32.4]
[null,null,"366.1.17.05.05.0.05.0.000.180","Прочие неналоговые доходы бюджетов муниципальных районов","Комитет по управлению муниципальным имуществом и земельными ресурсами администрации Тонкинского муниципального района Нижегородской области",null,"НЕ УКАЗАНО",30,27.22,32.5,30,31.2,32.4]
[null,null,"1.17.05.05.0.05.0.000.180","Прочие неналоговые доходы бюджетов муниципальных районов","Комитет по управлению муниципальным имуществом и земельными ресурсами администрации Тонкинского муниципального района Нижегородской области",null,"НЕ УКАЗАНО",30,27.22]
[null,"БЕЗВОЗМЕЗДНЫЕ ПОСТУПЛЕНИЯ","000.2.00.00.00.0.00.0.000.000","БЕЗВОЗМЕЗДНЫЕ ПОСТУПЛЕНИЯ",null,null,null,339993.41,271556.73,{"$f":"J209+J221+J280+J345+J387","v":339993.41},{"$f":"K209+K221+K280+K345+K387","v":314288.90000000002},{"$f":"L209+L221+L280+L345+L387","v":294821.7},321479.69999999995]
[null,"БЕЗВОЗМЕЗДНЫЕ ПОСТУПЛЕНИЯ ОТ ДРУГИХ БЮДЖЕТОВ БЮДЖЕТНОЙ СИСТЕМЫ РОССИЙСКОЙ ФЕДЕРАЦИИ","000.2.02.00.00.0.00.0.000.000","БЕЗВОЗМЕЗДНЫЕ ПОСТУПЛЕНИЯ ОТ ДРУГИХ БЮДЖЕТОВ БЮДЖЕТНОЙ СИСТЕМЫ РОССИЙСКОЙ ФЕДЕРАЦИИ",null,null,null,340000.98,271564.3,{"$f":"J209+J221+J280+J345","v":340000.98},{"$f":"K209+K221+K280+K345","v":314288.90000000002},294821.7,321479.69999999995]
[null,"Дотации бюджетам бюджетной системы Российской Федерации","001.2.02.10.00.0.00.0.000.150","Дотации бюджетам бюджетной системы Российской Федерации","Управление финансов администрации Тонкинского муниципального района Нижегородской области",null,null,146170.9,117801.97,{"$f":"J213+J218+J220","v":146170.9},{"$f":"K213+K218+K220","v":138129.4},{"$f":"L213+L218+L220","v":116805.4},118438.9]
[null,null,"2.02.15.00.1.00.0.000.150","Дотации на выравнивание бюджетной обеспеченности","Управление финансов администрации Тонкинского муниципального района Нижегородской области",null,"Дотации на выравнивание уровня бюджетной обеспеченности муниципальных районов",135996.5,107663.91]
[null,null,"2.02.15.00.1.05.0.000.150","Дотации бюджетам муниципальных районов на выравнивание бюджетной обеспеченности","Управление финансов администрации Тонкинского муниципального района Нижегородской области",null,"Дотации на выравнивание уровня бюджетной обеспеченности муниципальных районов",135996.5,107663.91]
[null,null,"2.02.15.00.1.05.0.220.150","Дотации бюджетам муниципальных районов на выравнивание бюджетной обеспеченности","Управление финансов администрации Тонкинского муниципального района Нижегородской области",null,"Дотации на выравнивание уровня бюджетной обеспеченности муниципальных районов",135996.5,107663.91]
[null,null,"001.2.02.15.00.1.05.0.220.150","Дотации на выравнивание уровня бюджетной обеспеченности муниципальных районов","Управление финансов администрации Тонкинского муниципального района Нижегородской области",null,"Дотации на выравнивание уровня бюджетной обеспеченности муниципальных районов",135996.5,107663.91,135996.5,137845.4,116805.4,118438.9]
[null,null,"2.02.15.00.2.00.0.000.150",null,"Управление финансов администрации Тонкинского муниципального района Нижегородской области",null,null,10174.4,10138.06,10174.4]
[null,null,"2.02.15.00.2.05.0.000.150",null,"Управление финансов администрации Тонкинского муниципального района Нижегородской области",null,null,10174.4,10138.06,10174.4]
[null,null,"2.02.15.00.2.05.0.220.150",null,"Управление финансов администрации Тонкинского муниципального района Нижегородской области",null,null,10174.4,10138.06,10174.4]
[null,null,"2.02.15.00.2.05.0.220.150","Дотация на поддержку мер по обеспечению сбалансированности бюджетов муниципальных районов","Управление финансов администрации Тонкинского муниципального района Нижегородской области",null,"Дотация на поддержку мер по обеспечению сбалансированности бюджетов муниципальных районов",174.4,138.06,174.4]
[null,null,"001.2.02.15.00.2.05.0.220.150","Дотация на поддержку мер по обеспечению сбалансированности бюджетов муниципальных районов","Управление финансов администрации Тонкинского муниципального района Нижегородской области",null,"Дотация на поддержку мер по обеспечению сбалансированности бюджетов муниципальных районов",174.4,138.06,174.4,284]
[null,null,"2.02.15.00.2.05.0.225.150","Общественно значимый проект \" Ремонт дорожного покрытия на центральной площади Победы в р.п.Тонкино\"","Управление финансов администрации Тонкинского муниципального района Нижегородской области",null,"Общественно значимый проект \" Ремонт дорожного покрытия на центральной площади Победы в р.п.Тонкино\"",10000,10000,10000]
[null,null,"001.2.02.15.00.2.05.0.225.150","Общественно значимый проект \" Ремонт дорожного покрытия на центральной площади Победы в р.п.Тонкино\"","Управление финансов администрации Тонкинского муниципального района Нижегородской области",null,"Общественно значимый проект \" Ремонт дорожного покрытия на центральной площади Победы в р.п.Тонкино\"",10000,10000,10000]
[null,"Субсидии бюджетам бюджетной системы Российской Федерации (межбюджетные субсидии)","000.2.02.20.00.0.00.0.000.150","Субсидии бюджетам бюджетной системы Российской Федерации (межбюджетные субсидии)",null,null,null,36766.980000000003,33505.35,{"$f":"J225+J229+J235+J237+J241+J243+J247+J249+J253+J255+J259+J261+J265+J267+J273+J275+J276+J277+J278+J279","v":36766.980000000003},{"$f":"K225+K229+K234+K235+K237+K241+K243+K247+K249+K253+K255+K259+K261+K265+K267+K272+K273+K274+K275+K276+K277+K278+K279","v":10337.9},{"$f":"L225+L229+L234+L235+L237+L241+L243+L247+L249+L253+L255+L259+L261+L265+L267+L272+L273+L274+L275+L276+L277+L278+L279","v":17966.100000000002},{"$f":"M225+M229+M234+M235+M237+M241+M243+M247+M249+M253+M255+M259+M261+M265+M267+M272+M273+M274+M275+M276+M277+M278+M279+M271","v":41600.199999999997}]
[null,null,"2.02.20.21.6.00.0.000.150","Субсидии бюджетам на осуществление дорожной деятельности в отношении автомобильных дорог общего пользования, а также капитального ремонта и ремонта дворовых территорий многоквартирных домов, проездов к дворовым территориям многоквартирных домов населенных пунктов","Администрация Тонкинского муниципального  района Нижегородской области",null,"Субсидии на капитальный ремонт и ремонт автомобильных дорог общего пользования местного значения",5439.5,5436.93]
[null,null,"2.02.20.21.6.05.0.000.150","Субсидии бюджетам муниципальных районов на осуществление дорожной деятельности в отношении автомобильных дорог общего пользования, а также капитального ремонта и ремонта дворовых территорий многоквартирных домов, проездов к дворовым территориям многоквартирных домов населенных пунктов","Администрация Тонкинского муниципального  района Нижегородской области",null,"Субсидии на капитальный ремонт и ремонт автомобильных дорог общего пользования местного значения",5439.5,5436.93]
[null,null,"2.02.20.21.6.05.0.220.150","Субсидии бюджетам муниципальных районов на осуществление дорожной деятельности в отношении автомобильных дорог общего пользования, а также капитального ремонта и ремонта дворовых территорий многоквартирных домов, проездов к дворовым территориям многоквартирных домов населенных пунктов","Администрация Тонкинского муниципального  района Нижегородской области",null,"Субсидии на капитальный ремонт и ремонт автомобильных дорог общего пользования местного значения",5439.5,5436.93]
[null,null,"487.2.02.20.21.6.05.0.220.150","Субсидии на капитальный ремонт и ремонт автомобильных дорог общего пользования местного значения","Администрация Тонкинского муниципального  района Нижегородской области",null,"Субсидии на капитальный ремонт и ремонт автомобильных дорог общего пользования местного значения",5439.5,5436.93,5439.5]
[null,null,"2.02.20.29.9.00.0.000.150","Субсидии на обеспечение мероприятий по переселению граждан из аварийного жилищного фонда за счет средств гос.корпорации - Фонд содействия реформированию ЖКХ","Отдел архитектуры и строительства администрации Тонкинского муниципального района Нижегородской области",null,"Субсидии на обеспечение мероприятий по переселению граждан из аварийного жилищного фонда за счет средств гос.корпорации - Фонд содействия реформированию ЖКХ",3292.81,3292.81,3292.81]
[null,null,"2.02.20.29.9.05.0.000.150","Субсидии на обеспечение мероприятий по переселению граждан из аварийного жилищного фонда за счет средств гос.корпорации - Фонд содействия реформированию ЖКХ","Отдел архитектуры и строительства администрации Тонкинского муниципального района Нижегородской области",null,"Субсидии на обеспечение мероприятий по переселению граждан из аварийного жилищного фонда за счет средств гос.корпорации - Фонд содействия реформированию ЖКХ",3292.81,3292.81,3292.81]
[null,null,"2.02.20.29.9.05.0.220.150","Субсидии на обеспечение мероприятий по переселению граждан из аварийного жилищного фонда за счет средств гос.корпорации - Фонд содействия реформированию ЖКХ","Отдел архитектуры и строительства администрации Тонкинского муниципального района Нижегородской области",null,"Субсидии на обеспечение мероприятий по переселению граждан из аварийного жилищного фонда за счет средств гос.корпорации - Фонд содействия реформированию ЖКХ",3292.81,3292.81,3292.81]
[null,null,"131.2.02.20.29.9.05.0.220.150","Субсидии на обеспечение мероприятий по переселению граждан из аварийного жилищного фонда за счет средств гос.корпорации - Фонд содействия реформированию ЖКХ","Отдел архитектуры и строительства администрации Тонкинского муниципального района Нижегородской области",null,"Субсидии на обеспечение мероприятий по переселению граждан из аварийного жилищного фонда за счет средств гос.корпорации - Фонд содействия реформированию ЖКХ",3292.81,3292.81,3292.81]
[null,null,"2.02.25.30.0.00.0.000.150",{"$nulls":4},4580.8100000000004,3690.98,4580.8100000000004]
[null,null,"2.02.25.30.4.00.0.000.150","Субсидии на организацию бесплатного горячего питания обучающихся, получающих начальное общее образование в муниципальных образовательных организациях Нижегородской области","Управление образования и молодёжной политики администрации Тонкинского муниципального района Нижегородской области",null,"Субсидии на организацию бесплатного горячего питания обучающихся, получающих начальное общее образование в муниципальных образовательных организациях Нижегородской области",1283.8699999999999,394.05,1283.8699999999999]
[null,null,"2.02.25.30.4.05.0.000.150","Субсидии на организацию бесплатного горячего питания обучающихся, получающих начальное общее образование в муниципальных образовательных организациях Нижегородской области","Управление образования и молодёжной политики администрации Тонкинского муниципального района Нижегородской области",null,"Субсидии на организацию бесплатного горячего питания обучающихся, получающих начальное общее образование в муниципальных образовательных организациях Нижегородской области",1283.8699999999999,394.05,1283.8699999999999]
[null,null,"2.02.25.30.4.05.0.110.150","Субсидии на организацию бесплатного горячего питания обучающихся, получающих начальное общее образование в муниципальных образовательных организациях Нижегородской области","Управление образования и молодёжной политики администрации Тонкинского муниципального района Нижегородской области",null,"Субсидии на организацию бесплатного горячего питания обучающихся, получающих начальное общее образование в муниципальных образовательных организациях Нижегородской области",950.08,291.60000000000002,950.08]
[null,null,"131.2.02.20.30.2.05.0.220.150","Субсидии на обеспечение мероприятий по переселению граждан из аварийного жилищного фонда за счет средств областного бюджета","Отдел архитектуры и строительства администрации Тонкинского муниципального района Нижегородской области",{"$nulls":6},1015.8,642]
[null,null,"074.2.02.25.30.4.05.0.110.150","Субсидии на организацию бесплатного горячего питания обучающихся, получающих начальное общее образование в муниципальных образовательных организациях Нижегородской области","Управление образования и молодёжной политики администрации Тонкинского муниципального района Нижегородской области",null,"Субсидии на организацию бесплатного горячего питания обучающихся, получающих начальное общее образование в муниципальных образовательных организациях Нижегородской области",950.08,291.60000000000002,950.08]
[null,null,"2.02.25.30.4.05.0.220.150","Субсидии на организацию бесплатного горячего питания обучающихся, получающих начальное общее образование в муниципальных образовательных организациях Нижегородской области","Управление образования и молодёжной политики администрации Тонкинского муниципального района Нижегородской области",null,"Субсидии на организацию бесплатного горячего питания обучающихся, получающих начальное общее образование в муниципальных образовательных организациях Нижегородской области",333.79,102.45,333.79]
[null,null,"074.2.02.25.30.4.05.0.220.150","Субсидии на организацию бесплатного горячего питания обучающихся, получающих начальное общее образование в муниципальных образовательных организациях Нижегородской области","Управление образования и молодёжной политики администрации Тонкинского муниципального района Нижегородской области",null,"Субсидии на организацию бесплатного горячего питания обучающихся, получающих начальное общее образование в муниципальных образовательных организациях Нижегородской области",333.79,102.45,333.79,828.4,802.9,802.9]
[null,null,"2.02.25.30.6.00.0.000.150","Субсидии на капитальный ремонт муниц. учреждений культуры и образоват.организаций, реализующих образовательные программы в области искусства","Отдел культуры администрации Тонкинского муниципального района Нижегородской области",null,"Субсидии на капитальный ремонт муниц. учреждений культуры и образоват.организаций, реализующих образовательные программы в области искусства",3296.93,3296.93,3296.93]
[null,null,"2.02.25.30.6.05.0.000.150","Субсидии на капитальный ремонт муниц. учреждений культуры и образоват.организаций, реализующих образовательные программы в области искусства","Отдел культуры администрации Тонкинского муниципального района Нижегородской области",null,"Субсидии на капитальный ремонт муниц. учреждений культуры и образоват.организаций, реализующих образовательные программы в области искусства",3296.93,3296.93,3296.93]
[null,null,"2.02.25.30.6.05.0.110.150","Субсидии на капитальный ремонт муниц. учреждений культуры и образоват.организаций, реализующих образовательные программы в области искусства","Отдел культуры администрации Тонкинского муниципального района Нижегородской области",null,"Субсидии на капитальный ремонт муниц. учреждений культуры и образоват.организаций, реализующих образовательные программы в области искусства",2585.2600000000002,2585.2600000000002,2585.2600000000002]
[null,null,"057.2.02.25.30.6.05.0.110.150","Субсидии на капитальный ремонт муниц. учреждений культуры и образоват.организаций, реализующих образовательные программы в области искусства","Отдел культуры администрации Тонкинского муниципального района Нижегородской области",null,"Субсидии на капитальный ремонт муниц. учреждений культуры и образоват.организаций, реализующих образовательные программы в области искусства",2585.2600000000002,2585.2600000000002,2585.2600000000002]
[null,null,"2.02.25.30.6.05.0.220.150","Субсидии на капитальный ремонт муниц. учреждений культуры и образоват.организаций, реализующих образовательные программы в области искусства","Отдел культуры администрации Тонкинского муниципального района Нижегородской области",null,"Субсидии на капитальный ремонт муниц. учреждений культуры и образоват.организаций, реализующих образовательные программы в области искусства",711.67,711.67,711.67]
[null,null,"057.2.02.25.30.6.05.0.220.150","Субсидии на капитальный ремонт муниц. учреждений культуры и образоват.организаций, реализующих образовательные программы в области искусства","Отдел культуры администрации Тонкинского муниципального района Нижегородской области",null,"Субсидии на капитальный ремонт муниц. учреждений культуры и образоват.организаций, реализующих образовательные программы в области искусства",711.67,711.67,711.67]
[null,null,"2.02.25.46.7.00.0.000.150","Субсидии на обеспечение развития и укрепления материально - технической базы домов культуры в населенных пунктах с числом жителей до 50 тысяч человек","Отдел культуры администрации Тонкинского муниципального района Нижегородской области",null,"Субсидии на обеспечение развития и укрепления материально - технической базы домов культуры в населенных пунктах с числом жителей до 50 тысяч человек",630.64,630.64,630.64]
[null,null,"2.02.25.46.7.05.0.000.150","Субсидии на обеспечение развития и укрепления материально - технической базы домов культуры в населенных пунктах с числом жителей до 50 тысяч человек","Отдел культуры администрации Тонкинского муниципального района Нижегородской области",null,"Субсидии на обеспечение развития и укрепления материально - технической базы домов культуры в населенных пунктах с числом жителей до 50 тысяч человек",630.64,630.64,630.64]
[null,null,"2.02.25.46.7.05.0.110.150","Субсидии на обеспечение развития и укрепления материально - технической базы домов культуры в населенных пунктах с числом жителей до 50 тысяч человек","Отдел культуры администрации Тонкинского муниципального района Нижегородской области",null,"Субсидии на обеспечение развития и укрепления материально - технической базы домов культуры в населенных пунктах с числом жителей до 50 тысяч человек",466.67,466.67,466.67]
[null,null,"057.2.02.25.46.7.05.0.110.150","Субсидии на обеспечение развития и укрепления материально - технической базы домов культуры в населенных пунктах с числом жителей до 50 тысяч человек","Отдел культуры администрации Тонкинского муниципального района Нижегородской области",null,"Субсидии на обеспечение развития и укрепления материально - технической базы домов культуры в населенных пунктах с числом жителей до 50 тысяч человек",466.67,466.67,466.67,230.2,237.2,237.2]
[null,null,"2.02.25.46.7.05.0.220.150","Субсидии на обеспечение развития и укрепления материально - технической базы домов культуры в населенных пунктах с числом жителей до 50 тысяч человек","Отдел культуры администрации Тонкинского муниципального района Нижегородской области",null,"Субсидии на обеспечение развития и укрепления материально - технической базы домов культуры в населенных пунктах с числом жителей до 50 тысяч человек",163.97,163.97,163.97]
[null,null,"057.2.02.25.46.7.05.0.220.150","Субсидии на обеспечение развития и укрепления материально - технической базы домов культуры в населенных пунктах с числом жителей до 50 тысяч человек","Отдел культуры администрации Тонкинского муниципального района Нижегородской области",null,"Субсидии на обеспечение развития и укрепления материально - технической базы домов культуры в населенных пунктах с числом жителей до 50 тысяч человек",163.97,163.97,163.97,80.900000000000006,74.900000000000006,74.900000000000006]
[null,null,"2.02.25.49.7.00.0.000.150","Субсдии на осуществления соц. выплат молодым семьям на приобретение жилья или строительство индивидуального жилого дома","Отдел архитектуры и строительства администрации Тонкинского муниципального района Нижегородской области",null,"Субсдии на осуществления соц. выплат молодым семьям на приобретение жилья или строительство индивидуального жилого дома",3536.6,3536.6,3536.6]
[null,null,"2.02.25.49.7.05.0.000.150","Субсдии на осуществления соц. выплат молодым семьям на приобретение жилья или строительство индивидуального жилого дома","Отдел архитектуры и строительства администрации Тонкинского муниципального района Нижегородской области",null,"Субсдии на осуществления соц. выплат молодым семьям на приобретение жилья или строительство индивидуального жилого дома",3536.6,3536.6,3536.6]
[null,null,"2.02.25.49.7.05.0.110.150","Субсдии на осуществления соц. выплат молодым семьям на приобретение жилья или строительство индивидуального жилого дома","Отдел архитектуры и строительства администрации Тонкинского муниципального района Нижегородской области",null,"Субсдии на осуществления соц. выплат молодым семьям на приобретение жилья или строительство индивидуального жилого дома",1555.01,1555.01,1555.01]
[null,null,"131.2.02.25.49.7.05.0.110.150","Субсдии на осуществления соц. выплат молодым семьям на приобретение жилья или строительство индивидуального жилого дома","Отдел архитектуры и строительства администрации Тонкинского муниципального района Нижегородской области",null,"Субсдии на осуществления соц. выплат молодым семьям на приобретение жилья или строительство индивидуального жилого дома",1555.01,1555.01,1555.01,638.9,639.5,707.6]
[null,null,"2.02.25.49.7.05.0.220.150","Субсдии на осуществления соц. выплат молодым семьям на приобретение жилья или строительство индивидуального жилого дома","Отдел архитектуры и строительства администрации Тонкинского муниципального района Нижегородской области",null,"Субсдии на осуществления соц. выплат молодым семьям на приобретение жилья или строительство индивидуального жилого дома",1981.59,1981.59,1981.59]
[null,null,"131.2.02.25.49.7.05.0.220.150","Субсдии на осуществления соц. выплат молодым семьям на приобретение жилья или строительство индивидуального жилого дома","Отдел архитектуры и строительства администрации Тонкинского муниципального района Нижегородской области",null,"Субсдии на осуществления соц. выплат молодым семьям на приобретение жилья или строительство индивидуального жилого дома",1981.59,1981.59,1981.59,1579.4,1514.3,1705.4]
[null,null,"2.02.25.51.9.00.0.000.150","Субсидии на поддержку отрасли культуры","Отдел культуры администрации Тонкинского муниципального района Нижегородской области",null,"Субсидии на поддержку отрасли культуры",60,60,60]
[null,null,"2.02.25.51.9.05.0.000.150","Субсидии на поддержку отрасли культуры","Отдел культуры администрации Тонкинского муниципального района Нижегородской области",null,"Субсидии на поддержку отрасли культуры",60,60,60]
[null,null,"2.02.25.51.9.05.0.110.150","Субсидии на поддержку отрасли культуры","Отдел культуры администрации Тонкинского муниципального района Нижегородской области",null,"Субсидии на поддержку отрасли культуры",44.4,44.4,44.4]
[null,null,"057.2.02.25.51.9.05.0.110.150","Субсидии на поддержку отрасли культуры","Отдел культуры администрации Тонкинского муниципального района Нижегородской области",null,"Субсидии на поддержку отрасли культуры",44.4,44.4,44.4,null,null,17102.599999999999]
[null,null,"2.02.25.51.9.05.0.220.150","Субсидии на поддержку отрасли культуры","Отдел культуры администрации Тонкинского муниципального района Нижегородской области",null,"Субсидии на поддержку отрасли культуры",15.6,15.6,15.6]
[null,null,"057.2.02.25.51.9.05.0.220.150","Субсидии на поддержку отрасли культуры","Отдел культуры администрации Тонкинского муниципального района Нижегородской области",null,"Субсидии на поддержку отрасли культуры",15.6,15.6,15.6,null,null,4320.7]
[null,null,"2.02.25.55.5.00.0.000.150","Субсидии на поддержку гос.программ субъектов РФ и муниципальных программ формирования современной городской среды","Администрация Тонкинского муниципального  района Нижегородской области",null,"Субсидии на поддержку гос.программ субъектов РФ и муниципальных программ формирования современной городской среды",2789.79,2789.79,2789.79]
[null,null,"2.02.25.55.5.05.0.000.150","Субсидии на поддержку гос.программ субъектов РФ и муниципальных программ формирования современной городской среды","Администрация Тонкинского муниципального  района Нижегородской области",null,"Субсидии на поддержку гос.программ субъектов РФ и муниципальных программ формирования современной городской среды",2789.79,2789.79,2789.79]
[null,null,"2.02.25.55.5.05.0.110.150","Субсидии на поддержку гос.программ субъектов РФ и муниципальных программ формирования современной городской среды","Администрация Тонкинского муниципального  района Нижегородской области",null,"Субсидии на поддержку гос.программ субъектов РФ и муниципальных программ формирования современной городской среды",2678.2,2678.2,2678.2]
[null,null,"487.2.02.25.55.5.05.0.110.150","Субсидии на поддержку гос.программ субъектов РФ и муниципальных программ формирования современной городской среды","Администрация Тонкинского муниципального  района Нижегородской области",null,"Субсидии на поддержку гос.программ субъектов РФ и муниципальных программ формирования современной городской среды",2678.2,2678.2,2678.2,2407,1777.8,1777.8]
[null,null,"2.02.25.55.5.05.0.220.150","Субсидии на поддержку гос.программ субъектов РФ и муниципальных программ формирования современной городской среды","Администрация Тонкинского муниципального  района Нижегородской области",null,"Субсидии на поддержку гос.программ субъектов РФ и муниципальных программ формирования современной городской среды",111.59,111.59,111.59]
[null,null,"487.2.02.25.55.5.05.0.220.150","Субсидии на поддержку гос.программ субъектов РФ и муниципальных программ формирования современной городской среды","Администрация Тонкинского муниципального  района Нижегородской области",null,"Субсидии на поддержку гос.программ субъектов РФ и муниципальных программ формирования современной городской среды",111.59,111.59,111.59,100.3,74.099999999999994,74.099999999999994]
[null,null,"2.02.29.99.9.00.0.000.150",{"$nulls":4},16436.849999999999,14067.59,16436.849999999999]
[null,null,"2.02.29.99.9.05.0.000.150",{"$nulls":4},16436.849999999999,14067.59,16436.849999999999]
[null,null,"2.02.29.99.9.05.0.220.150",{"$nulls":4},16436.849999999999,14067.59,16436.849999999999]
[null,null,"001.2.02.29.99.9.05.0.220.150","Субсидии на выплату заработной платы с начислениями на нее работникам муниципальных учреждений и органов местного самоуправления","Управление финансов администрации Тонкинского муниципального района Нижегородской области",{"$nulls":7},547.4]
[null,null,"057.2.02.29.99.9.05.0.220.150","Субсидии на реализацию мероприятий в рамках адресной инвестиционной программы","Отдел культуры администрации Тонкинского муниципального района Нижегородской области",{"$nulls":7},6880.7]
[null,null,"074.2.02.29.99.9.05.0.220.150","Субсидии на капитальный ремонт образовательных организаций, реализующих общеобразовательные программы Нижегородской области","Управление образования и молодёжной политики администрации Тонкинского муниципального района Нижегородской области",null,"Субсидии на капитальный ремонт образовательных организаций, реализующих общеобразовательные программы Нижегородской области",11930.1,10974.82,11930.1,2138.4,9495.2000000000007,4392.5]
[null,null,"074.2.02.29.99.9.05.0.220.150","Субсидии на дополнительное финансовое обеспечение мероприятий по организации бесплатного горячего питания обучающихся, получающих начальное общее образование в муниципальных образовательных организациях Нижегородской области","Управление образования и молодёжной политики администрации Тонкинского муниципального района Нижегородской области",{"$nulls":5},955.8,955.8,955.8]
[null,null,"487.2.02.29.99.9.05.0.220.150","Субсидии на оказание частичной финансовой поддержки районных СМИ","Администрация Тонкинского муниципального  района Нижегородской области",null,"Субсидии на оказание частичной финансовой поддержки районных СМИ",1255.5999999999999,1046.33,1255.5999999999999,1198.9000000000001,1198.9000000000001,1198.9000000000001]
[null,null,"487.2.02.29.99.9.05.0.220.150","Субсидии на обеспечение доступа к системе электронного документооборота","Администрация Тонкинского муниципального  района Нижегородской области",null,"Субсидии на обеспечение доступа к системе электронного документооборота",447,139.78,447,179.7,179.7,179.7]
[null,null,"487.2.02.29.99.9.05.0.220.150","Субсидии на создание ( обустройство) контейнерных площадок","Администрация Тонкинского муниципального  района Нижегородской области",null,"Субсидии на создание ( обустройство) контейнерных площадок",363.72,0,363.72]
[null,null,"487.2.02.29.99.9.05.0.220.150","Субсидии на реализацию проекта по поддержке местных инициатив","Администрация Тонкинского муниципального  района Нижегородской области",null,"Субсидии на реализацию проекта по поддержке местных инициатив",897.05,363.3,897.05]
[null,null,"487.2.02.29.99.9.05.0.220.150","Субсидии на реализацию мероприятий по обустройству и восстановлению памятных мест, посвященных ВОВ 1941-1945 г.г.","Администрация Тонкинского муниципального  района Нижегородской области",null,"Субсидии на реализацию мероприятий по обустройству и восстановлению памятных мест, посвященных ВОВ 1941-1945 г.г.",1543.37,1543.37,1543.37]
[null,"Субвенции бюджетам бюджетной системы Российской Федерации","000.2.02.30.00.0.00.0.000.150","Субвенции бюджетам бюджетной системы Российской Федерации",null,null,null,128097.5,97606.21,{"$f":"J284+J285+J286+J287+J288+J289+J290+J291+J292+J293+J294+J295+J296+J297+J301+J302+J303+J304+J308+J309+J313+J315+J319+J323+J327+J330+J334+J336+J340+J341+J343+J344","v":128097.50000000001},{"$f":"K284+K285+K286+K287+K288+K289+K290+K291+K292+K293+K294+K296+K295+K297+K298+K299+K300+K301+K302+K303+K304+K308+K309+K313+K315+K319+K323+K327+K330+K334+K336+K340+K341+K343+K344","v":140733.6},{"$f":"L284+L285+L286+L287+L288+L289+L290+L291+L292+L293+L294+L296+L295+L297+L298+L299+L300+L301+L302+L303+L304+L308+L309+L313+L315+L319+L323+L327+L330+L334+L336+L340+L341+L343+L344","v":134962.20000000001},136352.6]
[null,null,"2.02.30.02.4.00.0.000.150","Субвенции местным бюджетам на выполнение передаваемых полномочий субъектов Российской Федерации",null,null,null,114515.19,88346.44]
[null,null,"2.02.30.02.4.05.0.000.150","Субвенции бюджетам муниципальных районов на выполнение передаваемых полномочий субъектов Российской Федерации",null,null,null,114515.19,88346.44]
[null,null,"2.02.30.02.4.05.0.220.150","Субвенции бюджетам муниципальных районов на выполнение передаваемых полномочий субъектов Российской Федерации",null,null,null,114515.19,88346.44]
[null,null,"001.2.02.30.02.4.05.0.220.150","Субвенции на исполнение полномочий органов гос.власти по расчету и предоставлению дотаций поселениям","Управление финансов администрации Тонкинского муниципального района Нижегородской области",null,"Субвенции на исполнение полномочий органов гос.власти по расчету и предоставлению дотаций поселениям",24670.2,19530.62,24670.2,29119.599999999999,23609.5,25059.4]
[null,null,"074.2.02.30.02.4.05.0.220.150","Субвенция на исполнение полномочий в сфере общего образования в муниципальных образовательных организациях","Управление образования и молодёжной политики администрации Тонкинского муниципального района Нижегородской области",null,"Субвенция на исполнение полномочий в сфере общего образования в муниципальных образовательных организациях",56350.1,42497.37,56350.1,53685,53685,53685]
[null,null,"074.2.02.30.02.4.05.0.220.150","Субвенции на осуществление полномочий по организационно - техническому и информационно - методическому сопровождению аттестации пед.работников муниц. и частных организаций, с целью установления соответствия уровня квалификации требованиям, предъявляемым к первой квалификационной категории","Управление образования и молодёжной политики администрации Тонкинского муниципального района Нижегородской области",null,"Субвенции на осуществление полномочий по организационно - техническому и информационно - методическому сопровождению аттестации пед.работников муниц. и частных организаций, с целью установления соответствия уровня квалификации требованиям, предъявляемым к первой квалификационной категории",537.70000000000005,425.68,537.70000000000005,513.5,513.5,513.5]
[null,null,"074.2.02.30.02.4.05.0.220.150","Субвенции на осуществление полномочий по организации и осуществлению деятельности по опеке и попечительству в отношении несовершеннолетних граждан","Управление образования и молодёжной политики администрации Тонкинского муниципального района Нижегородской области",null,"Субвенции на осуществление полномочий по организации и осуществлению деятельности по опеке и попечительству в отношении несовершеннолетних граждан",468.7,390.45,468.7,465.4,465.4,465.4]
[null,null,"074.2.02.30.02.4.05.0.220.150","Субвенции на компенсацию части расходов по приобретению путевок в детские санатории, санатарно-оздоровит.лагеря круглогодичного действия","Управление образования и молодёжной политики администрации Тонкинского муниципального района Нижегородской области",null,"Субвенции на компенсацию части расходов по приобретению путевок в детские санатории, санатарно-оздоровит.лагеря круглогодичного действия",190.7,0,190.7,160.19999999999999,160.19999999999999,160.19999999999999]
[null,null,"074.2.02.30.02.4.05.0.220.150","Субвенции на исполнение полномочий в сфере общего образования в муниципальных дошкольных образовательных организациях","Управление образования и молодёжной политики администрации Тонкинского муниципального района Нижегородской области",null,"Субвенции на исполнение полномочий в сфере общего образования в муниципальных дошкольных образовательных организациях",23520.6,17738.45,23520.6,20939.3,20939.3,20939.3]
[null,null,"074.2.02.30.02.4.05.0.220.150","Субвенции на исполнение полномочий по финансовому обеспечению осуществления присмотра и ухода за детьми - инвалидами, детьми - сиротами и детьми, оставшимися без попечения родителей, а также за детьми с туберкулезной интоксикацией","Управление образования и молодёжной политики администрации Тонкинского муниципального района Нижегородской области",null,"Субвенции на исполнение полномочий по финансовому обеспечению осуществления присмотра и ухода за детьми - инвалидами, детьми - сиротами и детьми, оставшимися без попечения родителей, а также за детьми с туберкулезной интоксикацией",290.10000000000002,206.7,290.10000000000002,203,203,203]
[null,null,"074.2.02.30.02.4.05.0.220.150","Субвенции на исполнение полномочий по финансовому обеспечению двухразовым бесплатным питанием обучающихся с ограниченными возможностями здоровья, не проживающих в муниципальных организациях","Управление образования и молодёжной политики администрации Тонкинского муниципального района Нижегородской области",null,"Субвенции на исполнение полномочий по финансовому обеспечению двухразовым бесплатным питанием обучающихся с ограниченными возможностями здоровья, не проживающих в муниципальных организациях",247.7,176.49,247.7,246.8,246.8,246.8]
[null,null,"074.2.02.30.02.4.05.0.220.150","Субвенции на испол.полномочий по фин.обеспечению выплаты компенсации пед.работникам за работу по подготовке и проведению ГИА","Управление образования и молодёжной политики администрации Тонкинского муниципального района Нижегородской области",null,"Субвенции на испол.полномочий по фин.обеспечению выплаты компенсации пед.работникам за работу по подготовке и проведению ГИА",206.6,172.93,206.6,206.6,206.6,206.6]
[null,null,"082.2.02.30.02.4.05.0.220.150","Субвенции на исполнение отдельных гос.полномочий в сфере АПК","Управление сельского хозяйства администрации Тонкинского муниципального района Нижегородской области",null,"Субвенции на исполнение отдельных гос.полномочий в сфере АПК",3793.6,3019.07,3793.6,3803.8,3803.8,3803.8]
[null,null,"082.2.02.30.02.4.05.0.220.150","Субвенции на возмещение части затрат на приобретение элитных семян","Управление сельского хозяйства администрации Тонкинского муниципального района Нижегородской области",null,"Субвенции на возмещение части затрат на приобретение элитных семян",791.33,791.33,791.33,1372.8,846.5,846.5]
[null,null,"082.2.02.30.02.4.05.0.220.150","Субвенции на возмещение части затрат на уплату процентов по кредитам, полученным в российских кредитных организациях, и займам, полученным в сельскохозяйственных кредитных потребительских кооперативах, за счет средств областного бюджета","Управление сельского хозяйства администрации Тонкинского муниципального района Нижегородской области",null,"Субвенции на возмещение части затрат на уплату процентов по кредитам, полученным в российских кредитных организациях, и займам, полученным в сельскохозяйственных кредитных потребительских кооперативах, за счет средств областного бюджета",1.9,0,1.9]
[null,null,"082.2.02.30.02.4.05.0.220.150","Субвенции на обеспечение прироста с/х продукции собственного производства в рамках приоритетных подотраслей АПК","Управление сельского хозяйства администрации Тонкинского муниципального района Нижегородской области",null,"Субвенции на обеспечение прироста с/х продукции собственного производства в рамках приоритетных подотраслей АПК",1843.86,1843.86,1843.86,9106,9511,9421.2000000000007]
[null,null,"082.2.02.30.02.4.05.0.220.150","Субвенции на возмещение части затрат на поддержку собственного производства молока","Управление сельского хозяйства администрации Тонкинского муниципального района Нижегородской области",null,"Субвенции на возмещение части затрат на поддержку собственного производства молока",879.31,879.31,879.31,1965.2,2000.3,2000.3]
[null,null,"082.2.02.30.02.4.05.0.220.150","Субвенция на поддержку племенного животноводства","Управление сельского хозяйства администрации Тонкинского муниципального района Нижегородской области",{"$nulls":5},270.10000000000002,276,276]
[null,null,"082.2.02.30.02.4.05.0.220.150","Субвенции на возмещение части затрат на приобретение оборудования и техники ","Управление сельского хозяйства администрации Тонкинского муниципального района Нижегородской области",{"$nulls":5},4426.6000000000004,4426.6000000000004,4426.6000000000004]
[null,null,"131.2.02.30.02.4.05.0.220.150","Субвенции на проведение ремонта жилых помещений, собственниками которых являются дети- сироты","Отдел архитектуры и строительства администрации Тонкинского муниципального района Нижегородской области",{"$nulls":5},76.5]
[null,null,"487.2.02.30.02.4.05.0.220.150","Субвенции на опеку и попечительство в отношении совершеннолетних граждан","Администрация Тонкинского муниципального  района Нижегородской области",null,"Субвенции на опеку и попечительство в отношении совершеннолетних граждан",199,199,199,197.2,197.2,197.2]
[null,null,"487.2.02.30.02.4.05.0.220.150","Субвенции на осуществление гос.полномочий по исполнению функций комиссий по делам несовершеннолетних и защите их прав","Администрация Тонкинского муниципального  района Нижегородской области",null,"Субвенции на осуществление гос.полномочий по исполнению функций комиссий по делам несовершеннолетних и защите их прав",473.5,473.5,473.5,469.7,469.7,469.7]
[null,null,"487.2.02.30.02.4.05.0.220.150","Субвенции на осуществление полномочий по созданию административных комиссий в Ниж.обл. и на осуществление отдельных полномочий в области законодательства об административных правонарушениях","Администрация Тонкинского муниципального  района Нижегородской области",null,"Субвенции на осуществление полномочий по созданию административных комиссий в Ниж.обл. и на осуществление отдельных полномочий в области законодательства об административных правонарушениях",1.7,1.7,1.7,1.5,1.5,1.5]
[null,null,"487.2.02.30.02.4.05.0.220.150","Субвенции на осуществление полномочий по организации мероприятий при осуществлении деятельности по обращению с животными в части отлова и содержания животных без владельцев","Администрация Тонкинского муниципального  района Нижегородской области",null,"Субвенции на осуществление полномочий по организации мероприятий при осуществлении деятельности по обращению с животными в части отлова и содержания животных без владельцев",48.6,0,48.6,33.299999999999997,33.299999999999997,33.299999999999997]
[null,null,"2.02.30.02.9.00.0.000.150",null,"Управление образования и молодёжной политики администрации Тонкинского муниципального района Нижегородской области",null,null,1141.7,999.14,1141.7]
[null,null,"2.02.30.02.9.05.0.000.150",null,"Управление образования и молодёжной политики администрации Тонкинского муниципального района Нижегородской области",null,null,1141.7,999.14,1141.7]
[null,null,"2.02.30.02.9.05.0.220.150",null,"Управление образования и молодёжной политики администрации Тонкинского муниципального района Нижегородской области",null,null,1141.7,999.14,1141.7]
[null,null,"074.2.02.30.02.9.05.0.220.150","Субвенция на осуществление выплаты компенсации части родительской платы за присмотр и уход за ребёнком в государственных и муниципальных дошкольных образовательных организациях, частных образовательных организациях, реализующих образовательную программу дошкольного образования, в том числе обеспечение организации выплаты компенсации части родительской платы","Управление образования и молодёжной политики администрации Тонкинского муниципального района Нижегородской области",null,"Субвенция на осуществление выплаты компенсации части родительской платы за присмотр и уход за ребёнком в государственных и муниципальных дошкольных образовательных организациях, частных образовательных организациях, реализующих образовательную программу дошкольного образования, в том числе обеспечение организации выплаты компенсации части родительской платы",1121,984.39,1121,1116.0999999999999,1116.0999999999999,1116.0999999999999]
[null,null,"074.2.02.30.02.9.05.0.220.150","Субвенция на выплату компенсации части родит.платы, на обеспечение организации выплаты компенсации части родит.платы                     ( обл. ср-ва)","Управление образования и молодёжной политики администрации Тонкинского муниципального района Нижегородской области",null,"Субвенция на выплату компенсации части родит.платы, на обеспечение организации выплаты компенсации части родит.платы ( обл. ср-ва)",20.7,14.75,20.7,16.7,16.7,16.7]
[null,null,"2.02.35.08.2.00.0.000.150","Субвенции на обеспечение детей - сирот и детей, оставшихся без попечения родителей, жилыми помещениями","Комитет по управлению муниципальным имуществом и земельными ресурсами администрации Тонкинского муниципального района Нижегородской области",null,"Субвенции на обеспечение детей - сирот и детей, оставшихся без попечения родителей, жилыми помещениями",6075,3360,6075]
[null,null,"2.02.35.08.2.05.0.000.150","Субвенции на обеспечение детей - сирот и детей, оставшихся без попечения родителей, жилыми помещениями","Комитет по управлению муниципальным имуществом и земельными ресурсами администрации Тонкинского муниципального района Нижегородской области",null,"Субвенции на обеспечение детей - сирот и детей, оставшихся без попечения родителей, жилыми помещениями",6075,3360,6075]
[null,null,"2.02.35.08.2.05.0.110.150","Субвенции на обеспечение детей - сирот и детей, оставшихся без попечения родителей, жилыми помещениями","Комитет по управлению муниципальным имуществом и земельными ресурсами администрации Тонкинского муниципального района Нижегородской области",null,"Субвенции на обеспечение детей - сирот и детей, оставшихся без попечения родителей, жилыми помещениями",2275.5,1864.8,2275.5]
[null,null,"366.2.02.35.08.2.05.0.110.150","Субвенции на обеспечение детей - сирот и детей, оставшихся без попечения родителей, жилыми помещениями","Комитет по управлению муниципальным имуществом и земельными ресурсами администрации Тонкинского муниципального района Нижегородской области",null,"Субвенции на обеспечение детей - сирот и детей, оставшихся без попечения родителей, жилыми помещениями",2275.5,1864.8,2275.5,2475.3000000000002,2542.1999999999998,1782.2]
[null,null,"2.02.35.08.2.05.0.220.150","Субвенции на обеспечение детей - сирот и детей, оставшихся без попечения родителей, жилыми помещениями","Комитет по управлению муниципальным имуществом и земельными ресурсами администрации Тонкинского муниципального района Нижегородской области",null,"Субвенции на обеспечение детей - сирот и детей, оставшихся без попечения родителей, жилыми помещениями",3799.5,1495.2,3799.5]
[null,null,"366.2.02.35.08.2.05.0.220.150","Субвенции на обеспечение детей - сирот и детей, оставшихся без попечения родителей, жилыми помещениями","Комитет по управлению муниципальным имуществом и земельными ресурсами администрации Тонкинского муниципального района Нижегородской области",null,"Субвенции на обеспечение детей - сирот и детей, оставшихся без попечения родителей, жилыми помещениями",3799.5,1495.2,3799.5,3869.7,3802.8,4562.8]
[null,null,"2.02.35.11.8.00.0.000.150","Субвенции на осуществление первичного воинского учета","Управление финансов администрации Тонкинского муниципального района Нижегородской области",null,"Субвенции на осуществление первичного воинского учета",361.1,361.1,361.1]
[null,null,"2.02.35.11.8.05.0.000.150","Субвенции на осуществление первичного воинского учета","Управление финансов администрации Тонкинского муниципального района Нижегородской области",null,"Субвенции на осуществление первичного воинского учета",361.1,361.1,361.1]
[null,null,"2.02.35.11.8.05.0.110.150","Субвенции на осуществление первичного воинского учета","Управление финансов администрации Тонкинского муниципального района Нижегородской области",null,"Субвенции на осуществление первичного воинского учета",361.1,361.1,361.1]
[null,null,"001.2.02.35.11.8.05.0.110.150","Субвенции на осуществление первичного воинского учета","Управление финансов администрации Тонкинского муниципального района Нижегородской области",null,"Субвенции на осуществление первичного воинского учета",361.1,361.1,361.1,375.5,379.2,393.4]
[null,null,"2.02.35.12.0.00.0.000.150","Субвенция на реализацию переданных гос.полномочий по составлению ( изменению,дополнению) списков кандидатов в присяжные заседатели фед.судов общей юрисдикции в РФ ( фед.бюджет)","Администрация Тонкинского муниципального  района Нижегородской области",null,"Субвенция на реализацию переданных гос.полномочий по составлению ( изменению,дополнению) списков кандидатов в присяжные заседатели фед.судов общей юрисдикции в РФ ( фед.бюджет)",19.3,0,19.3]
[null,null,"2.02.35.12.0.05.0.000.150","Субвенция на реализацию переданных гос.полномочий по составлению ( изменению,дополнению) списков кандидатов в присяжные заседатели фед.судов общей юрисдикции в РФ ( фед.бюджет)","Администрация Тонкинского муниципального  района Нижегородской области",null,"Субвенция на реализацию переданных гос.полномочий по составлению ( изменению,дополнению) списков кандидатов в присяжные заседатели фед.судов общей юрисдикции в РФ ( фед.бюджет)",19.3,0,19.3]
[null,null,"2.02.35.12.0.05.0.110.150","Субвенция на реализацию переданных гос.полномочий по составлению ( изменению,дополнению) списков кандидатов в присяжные заседатели фед.судов общей юрисдикции в РФ ( фед.бюджет)","Администрация Тонкинского муниципального  района Нижегородской области",null,"Субвенция на реализацию переданных гос.полномочий по составлению ( изменению,дополнению) списков кандидатов в присяжные заседатели фед.судов общей юрисдикции в РФ ( фед.бюджет)",19.3,0,19.3]
[null,null,"487.2.02.35.12.0.05.0.110.150","Субвенция на реализацию переданных гос.полномочий по составлению ( изменению,дополнению) списков кандидатов в присяжные заседатели фед.судов общей юрисдикции в РФ ( фед.бюджет)","Администрация Тонкинского муниципального  района Нижегородской области",null,"Субвенция на реализацию переданных гос.полномочий по составлению ( изменению,дополнению) списков кандидатов в присяжные заседатели фед.судов общей юрисдикции в РФ ( фед.бюджет)",19.3,0,19.3,17.8,82.5,7.2]
[null,null,"2.02.35.13.5.00.0.000.150","Субвенция на обеспечение жильем отдельных категорий граждан, установленных ФЗ от 12 января 1995 г № 5 - ФЗ \" О ветеранах\", в соответствии с указом Президента РФ от 7 мая 2008 г № 714 \" Об обеспечении жильем ветеранов Великой Отечественной войны 1941-1945 годов\"","Отдел архитектуры и строительства администрации Тонкинского муниципального района Нижегородской области",null,"Субвенция на обеспечение жильем отдельных категорий граждан, установленных ФЗ от 12 января 1995 г № 5 - ФЗ \" О ветеранах\", в соответствии с указом Президента РФ от 7 мая 2008 г № 714 \" Об обеспечении жильем ветеранов Великой Отечественной войны 1941-1945 годов\"",2685.47,2685.47,2685.47]
[null,null,"2.02.35.13.5.05.0.000.150","Субвенция на обеспечение жильем отдельных категорий граждан, установленных ФЗ от 12 января 1995 г № 5 - ФЗ \" О ветеранах\", в соответствии с указом Президента РФ от 7 мая 2008 г № 714 \" Об обеспечении жильем ветеранов Великой Отечественной войны 1941-1945 годов\"","Отдел архитектуры и строительства администрации Тонкинского муниципального района Нижегородской области",null,"Субвенция на обеспечение жильем отдельных категорий граждан, установленных ФЗ от 12 января 1995 г № 5 - ФЗ \" О ветеранах\", в соответствии с указом Президента РФ от 7 мая 2008 г № 714 \" Об обеспечении жильем ветеранов Великой Отечественной войны 1941-1945 годов\"",2685.47,2685.47,2685.47]
[null,null,"2.02.35.13.5.05.0.110.150","Субвенция на обеспечение жильем отдельных категорий граждан, установленных ФЗ от 12 января 1995 г № 5 - ФЗ \" О ветеранах\", в соответствии с указом Президента РФ от 7 мая 2008 г № 714 \" Об обеспечении жильем ветеранов Великой Отечественной войны 1941-1945 годов\"","Отдел архитектуры и строительства администрации Тонкинского муниципального района Нижегородской области",null,"Субвенция на обеспечение жильем отдельных категорий граждан, установленных ФЗ от 12 января 1995 г № 5 - ФЗ \" О ветеранах\", в соответствии с указом Президента РФ от 7 мая 2008 г № 714 \" Об обеспечении жильем ветеранов Великой Отечественной войны 1941-1945 годов\"",2685.47,2685.47,2685.47]
[null,null,"131.2.02.35.13.5.05.0.110.150","Субвенция на обеспечение жильем отдельных категорий граждан, установленных ФЗ от 12 января 1995 г № 5 - ФЗ \" О ветеранах\", в соответствии с указом Президента РФ от 7 мая 2008 г № 714 \" Об обеспечении жильем ветеранов Великой Отечественной войны 1941-1945 годов\"","Отдел архитектуры и строительства администрации Тонкинского муниципального района Нижегородской области",null,"Субвенция на обеспечение жильем отдельных категорий граждан, установленных ФЗ от 12 января 1995 г № 5 - ФЗ \" О ветеранах\", в соответствии с указом Президента РФ от 7 мая 2008 г № 714 \" Об обеспечении жильем ветеранов Великой Отечественной войны 1941-1945 годов\"",2685.47,2685.47,2685.47]
[null,null,"2.02.35.30.3.00.0.000.150","Субвенции на исполнение полномочий по финансовому обеспечению выплат ежемесячного денежного вознаграждения за классное руководство пед.работникам муниц.образоват.организаций Ниж.обл.","Управление образования и молодёжной политики администрации Тонкинского муниципального района Нижегородской области",null,"Субвенции на исполнение полномочий по финансовому обеспечению выплат ежемесячного денежного вознаграждения за классное руководство пед.работникам муниц.образоват.организаций Ниж.обл.",1458.2,673.86,1458.2]
[null,null,"2.02.35.30.3.05.0.110.150","Субвенции на исполнение полномочий по финансовому обеспечению выплат ежемесячного денежного вознаграждения за классное руководство пед.работникам муниц.образоват.организаций Ниж.обл.","Управление образования и молодёжной политики администрации Тонкинского муниципального района Нижегородской области",null,"Субвенции на исполнение полномочий по финансовому обеспечению выплат ежемесячного денежного вознаграждения за классное руководство пед.работникам муниц.образоват.организаций Ниж.обл.",1458.2,673.86,1458.2]
[null,null,"074.2.02.35.30.3.05.0.110.150","Субвенции на исполнение полномочий по финансовому обеспечению выплат ежемесячного денежного вознаграждения за классное руководство пед.работникам муниц.образоват.организаций Ниж.обл.","Управление образования и молодёжной политики администрации Тонкинского муниципального района Нижегородской области",null,"Субвенции на исполнение полномочий по финансовому обеспечению выплат ежемесячного денежного вознаграждения за классное руководство пед.работникам муниц.образоват.организаций Ниж.обл.",1458.2,673.86,1458.2]
[null,null,"2.02.35.50.2.00.0.000.150","Субвенции на обеспечение прироста с/х продукции собственного производства в рамках приоритетных подотраслей АПК","Управление сельского хозяйства администрации Тонкинского муниципального района Нижегородской области",null,"Субвенции на обеспечение прироста с/х продукции собственного производства в рамках приоритетных подотраслей АПК",425.52,93.09,425.52]
[null,null,"2.02.35.50.2.05.0.000.150","Субвенции на обеспечение прироста с/х продукции собственного производства в рамках приоритетных подотраслей АПК","Управление сельского хозяйства администрации Тонкинского муниципального района Нижегородской области",null,"Субвенции на обеспечение прироста с/х продукции собственного производства в рамках приоритетных подотраслей АПК",425.52,93.09,425.52]
[null,null,"2.02.35.50.2.05.0.110.150","Субвенции на обеспечение прироста с/х продукции собственного производства в рамках приоритетных подотраслей АПК","Управление сельского хозяйства администрации Тонкинского муниципального района Нижегородской области",null,"Субвенции на обеспечение прироста с/х продукции собственного производства в рамках приоритетных подотраслей АПК",314.89,68.89,314.89]
[null,null,"082.2.02.35.50.2.05.0.110.150","Субвенции на обеспечение прироста с/х продукции собственного производства в рамках приоритетных подотраслей АПК","Управление сельского хозяйства администрации Тонкинского муниципального района Нижегородской области",null,"Субвенции на обеспечение прироста с/х продукции собственного производства в рамках приоритетных подотраслей АПК",314.89,68.89,314.89,2600.3000000000002,2579.9,2649.4]
[null,null,"2.02.35.50.2.05.0.220.150","Субвенции на обеспечение прироста с/х продукции собственного производства в рамках приоритетных подотраслей АПК","Управление сельского хозяйства администрации Тонкинского муниципального района Нижегородской области",null,"Субвенции на обеспечение прироста с/х продукции собственного производства в рамках приоритетных подотраслей АПК",110.64,24.2,110.64]
[null,null,"082.2.02.35.50.2.05.0.220.150","Субвенции на обеспечение прироста с/х продукции собственного производства в рамках приоритетных подотраслей АПК","Управление сельского хозяйства администрации Тонкинского муниципального района Нижегородской области",null,"Субвенции на обеспечение прироста с/х продукции собственного производства в рамках приоритетных подотраслей АПК",110.64,24.2,110.64,913.6,814.7,836.6]
[null,null,"2.02.35.50.8.00.0.000.150",null,"Управление сельского хозяйства администрации Тонкинского муниципального района Нижегородской области",null,null,1415.99,1087.1099999999999,1415.99]
[null,null,"2.02.35.50.8.05.0.000.150",null,"Управление сельского хозяйства администрации Тонкинского муниципального района Нижегородской области",null,null,1415.99,1087.1099999999999,1415.99]
[null,null,"2.02.35.50.8.05.0.110.150",null,"Управление сельского хозяйства администрации Тонкинского муниципального района Нижегородской области",null,null,1047.83,804.46,1047.83]
[null,null,"082.2.02.35.50.8.05.0.110.150","Субвенции на возмещение части затрат на приобретение элитных семян","Управление сельского хозяйства администрации Тонкинского муниципального района Нижегородской области",null,"Субвенции на возмещение части затрат на приобретение элитных семян",389.75,146.37,389.75,555,555,555]
[null,null,"082.2.02.35.50.8.05.0.110.150","Субвенции на возмещение части затрат на поддержку собственного производства молока","Управление сельского хозяйства администрации Тонкинского муниципального района Нижегородской области",null,"Субвенции на возмещение части затрат на поддержку собственного производства молока",658.09,658.09,658.09,989,990,990]
[null,null,"2.02.35.50.8.05.0.220.150",null,"Управление сельского хозяйства администрации Тонкинского муниципального района Нижегородской области",null,null,368.16,282.64999999999998,368.16]
[null,null,"082.2.02.35.50.8.05.0.220.150","Субвенции на возмещение части затрат на приобретение элитных семян","Управление сельского хозяйства администрации Тонкинского муниципального района Нижегородской области",null,"Субвенции на возмещение части затрат на приобретение элитных семян",136.94,51.43,136.94,195,175.3,175.3]
[null,null,"082.2.02.35.50.8.05.0.220.150","Субвенции на возмещение части затрат на поддержку собственного производства молока","Управление сельского хозяйства администрации Тонкинского муниципального района Нижегородской области",null,"Субвенции на возмещение части затрат на поддержку собственного производства молока",231.22,231.22,231.22,347.5,312.60000000000002,312.60000000000002]
[null,"Иные межбюджетные трансферты","000.2.02.40.00.0.00.0.000.150","Иные межбюджетные трансферты",null,null,null,28965.599999999999,22650.78,{"$f":"J348+J349+J350+J351+J352+J358+J363+J371","v":28965.600000000002},{"$f":"K348+K349+K350+K351+K352","v":25088},{"$f":"L348+L349+L350+L351+L352","v":25088},25088]
[null,null,"2.02.40.01.4.00.0.000.150","Межбюджетные трансферты, передаваемые бюджетам муниципальных образований на осуществление части полномочий по решению вопросов местного значения в соответствии с заключенными соглашениями",null,null,null,25272.9,19188.61]
[null,null,"2.02.40.01.4.05.0.000.150","Межбюджетные трансферты, передаваемые бюджетам муниципальных районов из бюджетов поселений на осуществление части полномочий по решению вопросов местного значения в соответствии с заключенными соглашениями",null,null,null,25272.9,19188.61]
[null,null,"001.2.02.40.01.4.05.0.000.150","Межбюджетные трансферты, передаваемые бюджетам муниципальных районов из бюджетов поселений на осуществление части полномочий по решению вопросов местного значения в соответствии с заключенными соглашениями","Управление финансов администрации Тонкинского муниципального района Нижегородской области",null,"Средства на исполнение переданных полномочий по формированию, исполнению и контролю за исполнением бюджетов поселений",914,725.53,914,930,930,930]
[null,null,"057.2.02.40.01.4.05.0.000.150","Межбюджетные трансферты, передаваемые бюджетам муниципальных районов из бюджетов поселений на осуществление части полномочий по решению вопросов местного значения в соответствии с заключенными соглашениями","Отдел культуры администрации Тонкинского муниципального района Нижегородской области",null,"Средства на исполнение переданных полномочий по культуре",23371.200000000001,17678.89,23371.200000000001,23153,23153,23153]
[null,null,"131.2.02.40.01.4.05.0.000.150","Межбюджетные трансферты, передаваемые бюджетам муниципальных районов из бюджетов поселений на осуществление части полномочий по решению вопросов местного значения в соответствии с заключенными соглашениями","Отдел архитектуры и строительства администрации Тонкинского муниципального района Нижегородской области",null,"Средства на исполнение переданных полномочий в сфере градостроительной деятельности",457,362.91,457,465,465,465]
[null,null,"366.2.02.40.01.4.05.0.000.150","Межбюджетные трансферты, передаваемые бюджетам муниципальных районов из бюджетов поселений на осуществление части полномочий по решению вопросов местного значения в соответствии с заключенными соглашениями","Комитет по управлению муниципальным имуществом и земельными ресурсами администрации Тонкинского муниципального района Нижегородской области",null,"Средства на исполнение переданных полномочий в сфере управления имуществом и земельными ресурсами поселений",457,362.91,457,465,465,465]
[null,null,"487.2.02.40.01.4.05.0.000.150","Межбюджетные трансферты, передаваемые бюджетам муниципальных районов из бюджетов поселений на осуществление части полномочий по решению вопросов местного значения в соответствии с заключенными соглашениями","Администрация Тонкинского муниципального  района Нижегородской области",null,null,{"$f":"H353+H354","v":73.7},{"$f":"I353+I354","v":58.37},{"$f":"J353+J354","v":73.7},75,75,75]
[null,null,"487.2.02.40.01.4.05.0.000.150","Средства на исполнение переданных полномочий по ГО и ЧС",null,null,"Средства на исполнение переданных полномочий по ГО и ЧС",28,21.33,28]
[null,null,"487.2.02.40.01.4.05.0.000.150","Средства на исполнение переданных полномочий по противодействию коррупции","Администрация Тонкинского муниципального  района Нижегородской области",null,"Средства на исполнение переданных полномочий по противодействию коррупции",45.7,37.04,45.7]
[null,null,"2.02.45.16.0.00.0.000.150",{"$nulls":4},3611.43,3383.9,3611.43]
[null,null,"2.02.45.16.0.05.0.000.150",{"$nulls":4},3611.43,3383.9,3611.43]
[null,null,"2.02.45.16.0.05.0.220.150",{"$nulls":4},3611.43,3383.9,3611.43]
[null,null,"057.2.02.45.16.0.05.0.220.150","Межбюджетные трансферты, передаваемые бюджетам муниципальных районов для компенсации дополнительных расходов, возникших в результате решений, принятых органами власти другого уровня","Отдел культуры администрации Тонкинского муниципального района Нижегородской области",null,null,{"$f":"H359+H360+H361+H362","v":406.4},{"$f":"I359+I360+I361+I362","v":406.4},{"$f":"J359+J360+J361+J362","v":406.4}]
[null,null,"057.2.02.45.16.0.05.0.220.150","Распоряжение Правительства Нижегородской обл. № 151-р от 02.03.2020 г ( МЦБС на приобретение цветного принтера)","Отдел культуры администрации Тонкинского муниципального района Нижегородской области",null,"Распоряжение Правительства Нижегородской обл. № 151-р от 02.03.2020 г ( МЦБС на приобретение цветного принтера)",50,50,50]
[null,null,"057.2.02.45.16.0.05.0.220.150","Распоряжение Правительства Ниж.обл. № 950-р от 01.09.2020 г ( МЦБС на приобретение и установку оконных блоков)","Отдел культуры администрации Тонкинского муниципального района Нижегородской области",null,"Распоряжение Правительства Ниж.обл. № 950-р от 01.09.2020 г ( МЦБС на приобретение и установку оконных блоков)",142.4,142.4,142.4]
[null,null,"057.2.02.45.16.0.05.0.220.150","Распоряжение Правительства Ниж.обл. № 1033-р от 19.09.2020 г ( МЦБС на приобретение и установку оконных блоков в Центральной районной библиотеке)","Отдел культуры администрации Тонкинского муниципального района Нижегородской области",null,"Распоряжение Правительства Ниж.обл. № 1033-р от 19.09.2020 г ( МЦБС на приобретение и установку оконных блоков в Центральной районной библиотеке)",142.4,142.4,142.4]
[null,null,"057.2.02.45.16.0.05.0.220.150","Распоряжение Правительства Нижегородской обл. № 1113-р от 08.10.2020 г ( МЦКС на приобретение новогодних подарков)","Отдел культуры администрации Тонкинского муниципального района Нижегородской области",null,"Распоряжение Правительства Нижегородской обл. № 1113-р от 08.10.2020 г ( МЦКС на приобретение новогодних подарков)",71.599999999999994,71.599999999999994,71.599999999999994]
[null,null,"074.2.02.45.16.0.05.0.220.150","Межбюджетные трансферты, передаваемые бюджетам муниципальных районов для компенсации дополнительных расходов, возникших в результате решений, принятых органами власти другого уровня","Управление образования и молодёжной политики администрации Тонкинского муниципального района Нижегородской области",null,null,{"$f":"H364+H365+H366+H367+H368+H369+H370","v":2040.0900000000001},{"$f":"I364+I365+I366+I367+I368+I369+I370","v":1812.5500000000002},{"$f":"J364+J365+J366+J367+J368+J369+J370","v":2040.0900000000001}]
[null,null,"074.2.02.45.16.0.05.0.220.150","Распоряжение Правительства Нижегородской обл. № 151-р от 02.03.2020 г (детский сад № 1 \" Теремок\" на приобретение фотокамеры)","Управление образования и молодёжной политики администрации Тонкинского муниципального района Нижегородской области",null,"Распоряжение Правительства Нижегородской обл. № 151-р от 02.03.2020 г (детский сад № 1 \" Теремок\" на приобретение фотокамеры)",30,30,30]
[null,null,"074.2.02.45.16.0.05.0.220.150","Распоряжение Правительства Нижегородской обл. № 151-р от 02.03.2020 г ( детский сад № 5 \" Сказка\" на приобретение уличной детской площадки)","Управление образования и молодёжной политики администрации Тонкинского муниципального района Нижегородской области",null,"Распоряжение Правительства Нижегородской обл. № 151-р от 02.03.2020 г ( детский сад № 5 \" Сказка\" на приобретение уличной детской площадки)",127.51,127.51,127.51]
[null,null,"074.2.02.45.16.0.05.0.220.150","Распоряжение Правительства Нижегородской обл. № 151-р от 02.03.2020 г ( ЦДО р.п.Тонкино на приобретение и установку оконных блоков)","Управление образования и молодёжной политики администрации Тонкинского муниципального района Нижегородской области",null,"Распоряжение Правительства Нижегородской обл. № 151-р от 02.03.2020 г ( ЦДО р.п.Тонкино на приобретение и установку оконных блоков)",120,120,120]
[null,null,"074.2.02.45.16.0.05.0.220.150","Распоряжение Правительства Нижегородской обл. № 409-р от 21.04.2020 г (ЦДО р.п.Тонкино на приобретение спортивного инвентаря)","Управление образования и молодёжной политики администрации Тонкинского муниципального района Нижегородской области",null,"Распоряжение Правительства Нижегородской обл. № 409-р от 21.04.2020 г (ЦДО р.п.Тонкино на приобретение спортивного инвентаря)",120,120,120]
[null,null,"074.2.02.45.16.0.05.0.220.150","Иные межбюджетные трансферты на финансовое обеспечение деятельности центров образования цифрового и гуманитарного профилей \" Точка роста\"","Управление образования и молодёжной политики администрации Тонкинского муниципального района Нижегородской области",null,"Иные межбюджетные трансферты на финансовое обеспечение деятельности центров образования цифрового и гуманитарного профилей \" Точка роста\"",910.15,682.61,910.15]
[null,null,"074.2.02.45.16.0.05.0.220.150","Распоряжение Правительства Ниж.обл. № 941-р от 31.08.2020 г ( на финансирование мероприятий по обеспечению образоват. организаций средствами индивидуальной защиты и дезинфекции)","Управление образования и молодёжной политики администрации Тонкинского муниципального района Нижегородской области",null,"Распоряжение Правительства Ниж.обл. № 941-р от 31.08.2020 г ( на финансирование мероприятий по обеспечению образоват. организаций средствами индивидуальной защиты и дезинфекции)",219.61,219.61,219.61]
[null,null,"074.2.02.45.16.0.05.0.220.150","Иные межбюджетные трансферты на обеспечение развития информационно- телекоммуниувционной инфраструктуры объектов общеобразовательных организаций","Управление образования и молодёжной политики администрации Тонкинского муниципального района Нижегородской области",null,"Иные межбюджетные трансферты на обеспечение развития информационно- телекоммуниувционной инфраструктуры объектов общеобразовательных организаций",512.82000000000005,512.82000000000005,512.82000000000005]
[null,null,"487.2.02.45.16.0.05.0.220.150","Межбюджетные трансферты, передаваемые бюджетам муниципальных районов для компенсации дополнительных расходов, возникших в результате решений, принятых органами власти другого уровня","Администрация Тонкинского муниципального  района Нижегородской области",null,null,{"$f":"H372+H373+H374+H375+H376+H377+H378+H379+H380+H381+H382+H386","v":1246.21},{"$f":"I372+I373+I374+I375+I376+I377+I378+I379+I380+I381+I382+I386","v":1243.22},1246.21]
[null,null,"487.2.02.45.16.0.05.0.220.150","Распоряжение Правительства Нижегородской обл. № 151-р от 02.03.2020 г ( ФСК \" Кристалл\" на приобретение спортивного лыжного инвентаря)","Администрация Тонкинского муниципального  района Нижегородской области",null,"Распоряжение Правительства Нижегородской обл. № 151-р от 02.03.2020 г ( ФСК \" Кристалл\" на приобретение спортивного лыжного инвентаря)",53.71,53.71]
[null,null,"487.2.02.45.16.0.05.0.220.150","Распоряжение Правительства Нижегородской обл. № 151-р от 02.03.2020 г ( на оказание материальной помощи Голубевой О.Г.)","Администрация Тонкинского муниципального  района Нижегородской области",null,"Распоряжение Правительства Нижегородской обл. № 151-р от 02.03.2020 г ( на оказание материальной помощи Голубевой О.Г.)",15,15]
[null,null,"487.2.02.45.16.0.05.0.220.150","Распоряжение Правительства Нижегородской обл. № 151-р от 02.03.2020 г ( на оказание материальной помощи Бебениной З.П.)","Администрация Тонкинского муниципального  района Нижегородской области",null,"Распоряжение Правительства Нижегородской обл. № 151-р от 02.03.2020 г ( на оказание материальной помощи Бебениной З.П.)",25,25]
[null,null,"487.2.02.45.16.0.05.0.220.150","Распоряжение Правительства Нижегородской обл. № 151-р от 02.03.2020 г ( на оказание материальной помощи Ворониной Л.Н.)","Администрация Тонкинского муниципального  района Нижегородской области",null,"Распоряжение Правительства Нижегородской обл. № 151-р от 02.03.2020 г ( на оказание материальной помощи Ворониной Л.Н.)",5,5]
[null,null,"487.2.02.45.16.0.05.0.220.150","Распоряжение Правительства Нижегородской обл. № 151-р от 02.03.2020 г ( на оказание материальной помощи Полетаевой А.А.)","Администрация Тонкинского муниципального  района Нижегородской области",null,"Распоряжение Правительства Нижегородской обл. № 151-р от 02.03.2020 г ( на оказание материальной помощи Полетаевой А.А.)",5,5]
[null,null,"487.2.02.45.16.0.05.0.220.150","Иные межбюджетные трансферты на предоставление грантов на награждение победителей смотра - конкурса на звание \" Лучшее муниц.образование НО\"","Администрация Тонкинского муниципального  района Нижегородской области",null,"Иные межбюджетные трансферты на предоставление грантов на награждение победителей смотра - конкурса на звание \" Лучшее муниц.образование НО\"",602.82000000000005,602.82000000000005]
[null,null,"487.2.02.45.16.0.05.0.220.150","Распоряжение Правительства Нижегородской обл. № 429 - р от 27.04.2020 г ( на приобретение дезинфицирующих средств )","Администрация Тонкинского муниципального  района Нижегородской области",null,"Распоряжение Правительства Нижегородской обл. № 429 - р от 27.04.2020 г ( на приобретение дезинфицирующих средств )",26.92,26.92]
[null,null,"487.2.02.45.16.0.05.0.220.150","Распоряжение Правительства Ниж.обл.№ 456-р от 06.05.2020 г ( на оказание материальной помощи на лечение Соколовой В.П. )","Администрация Тонкинского муниципального  района Нижегородской области",null,"Распоряжение Правительства Ниж.обл.№ 456-р от 06.05.2020 г ( на оказание материальной помощи на лечение Соколовой В.П. )",40,40]
[null,null,"487.2.02.45.16.0.05.0.220.150","Иные межбюджетные трансферты на возмещение затрат организаций, пострадавших от распространения новой коронавирусной инфекции ( COVID - 19) на оплату коммунальных услуг","Администрация Тонкинского муниципального  района Нижегородской области",null,"Иные межбюджетные трансферты на возмещение затрат организаций, пострадавших от распространения новой коронавирусной инфекции ( COVID - 19) на оплату коммунальных услуг",197.99,197.99]
[null,null,"487.2.02.45.16.0.05.0.220.150","Распоряжение Правительства Ниж.обл. № 618-р от 16.06.2020 г ( на транспортные расходы по предоставлению ОМС УИК транспортных средств)","Администрация Тонкинского муниципального  района Нижегородской области",null,"Распоряжение Правительства Ниж.обл. № 618-р от 16.06.2020 г ( на транспортные расходы по предоставлению ОМС УИК транспортных средств)",143.51,143.51]
[null,null,"487.2.02.45.16.0.05.0.220.150","Распоряжение Правительства Ниж.обл. № 950-р от 01.09.2020 г ( на благоустройство кладбища в д.Трошково Пакалевская с/а)","Администрация Тонкинского муниципального  района Нижегородской области",null,"Распоряжение Правительства Ниж.обл. № 950-р от 01.09.2020 г ( на благоустройство кладбища в д.Трошково Пакалевская с/а)",50,50]
[null,null,"2.02.49.99.9.00.0.000.150","Иные межбюджетные трансферты на приобретение мусорных контейнеров и ( или) бункеров","Администрация Тонкинского муниципального  района Нижегородской области",null,"Иные межбюджетные трансферты на приобретение мусорных контейнеров и ( или) бункеров",81.260000000000005,78.27]
[null,null,"2.02.49.99.9.05.0.000.150","Иные межбюджетные трансферты на приобретение мусорных контейнеров и ( или) бункеров","Администрация Тонкинского муниципального  района Нижегородской области",null,"Иные межбюджетные трансферты на приобретение мусорных контейнеров и ( или) бункеров",81.260000000000005,78.27]
[null,null,"2.02.49.99.9.05.0.220.150","Иные межбюджетные трансферты на приобретение мусорных контейнеров и ( или) бункеров","Администрация Тонкинского муниципального  района Нижегородской области",null,"Иные межбюджетные трансферты на приобретение мусорных контейнеров и ( или) бункеров",81.260000000000005,78.27]
[null,null,"487.2.02.49.99.9.05.0.220.150","Иные межбюджетные трансферты на приобретение мусорных контейнеров и ( или) бункеров","Администрация Тонкинского муниципального  района Нижегородской области",null,"Иные межбюджетные трансферты на приобретение мусорных контейнеров и ( или) бункеров",81.260000000000005,78.27]
[null,"ВОЗВРАТ ОСТАТКОВ СУБСИДИЙ, СУБВЕНЦИЙ И ИНЫХ МЕЖБЮДЖЕТНЫХ ТРАНСФЕРТОВ, ИМЕЮЩИХ ЦЕЛЕВОЕ НАЗНАЧЕНИЕ, ПРОШЛЫХ ЛЕТ","000.2.19.00.00.0.00.0.000.000","ВОЗВРАТ ОСТАТКОВ СУБСИДИЙ, СУБВЕНЦИЙ И ИНЫХ МЕЖБЮДЖЕТНЫХ ТРАНСФЕРТОВ, ИМЕЮЩИХ ЦЕЛЕВОЕ НАЗНАЧЕНИЕ, ПРОШЛЫХ ЛЕТ",null,null,null,-7.57,-7.57,{"$f":"J391+J394","v":-7.57}]
[null,null,"2.19.00.00.0.05.0.000.150","Возврат остатков субсидий, субвенций и иных межбюджетных трансфертов, имеющих целевое назначение, прошлых лет из бюджетов муниципальных районов",null,null,null,-7.57,-7.57]
[null,null,"2.19.45.16.0.05.0.000.150","Возврат остатков иных межбюджетных трансфертов, передаваемых для компенсации дополнительных расходов, возникших в результате решений, принятых органами власти другого уровня, из бюджетов муниципальных районов","Управление образования и молодёжной политики администрации Тонкинского муниципального района Нижегородской области",null,"НЕ УКАЗАНО",-6.13,-6.13]
[null,null,"2.19.45.16.0.05.0.220.150","Возврат остатков иных межбюджетных трансфертов, передаваемых для компенсации дополнительных расходов, возникших в результате решений, принятых органами власти другого уровня, из бюджетов муниципальных районов","Управление образования и молодёжной политики администрации Тонкинского муниципального района Нижегородской области",null,"НЕ УКАЗАНО",-6.13,-6.13]
[null,null,"074.2.19.45.16.0.05.0.220.150","Возврат остатков иных межбюджетных трансфертов, передаваемых для компенсации дополнительных расходов, возникших в результате решений, принятых органами власти другого уровня, из бюджетов муниципальных районов","Управление образования и молодёжной политики администрации Тонкинского муниципального района Нижегородской области",null,"НЕ УКАЗАНО",-6.13,-6.13,-6.13]
[null,null,"2.19.60.01.0.05.0.000.150","Возврат прочих остатков субсидий, субвенций и иных межбюджетных трансфертов, имеющих целевое назначение, прошлых лет из бюджетов муниципальных районов",null,null,null,-1.44,-1.44,-1.44]
[null,null,"2.19.60.01.0.05.0.220.150","Возврат прочих остатков субсидий, субвенций и иных межбюджетных трансфертов, имеющих целевое назначение, прошлых лет из бюджетов муниципальных районов",null,null,null,-1.44,-1.44,-1.44]
[null,null,"074.2.19.60.01.0.05.0.220.150","Возврат прочих остатков субсидий, субвенций и иных межбюджетных трансфертов, имеющих целевое назначение, прошлых лет из бюджетов муниципальных районов","Управление образования и молодёжной политики администрации Тонкинского муниципального района Нижегородской области",null,"НЕ УКАЗАНО",-1.44,-1.44,-1.44]
[null,null,"2.19.60.01.0.05.0.220.150","Возврат прочих остатков субсидий, субвенций и иных межбюджетных трансфертов, имеющих целевое назначение, прошлых лет из бюджетов муниципальных районов","Отдел архитектуры и строительства администрации Тонкинского муниципального района Нижегородской области","000","НЕ УКАЗАНО",-193.09,-193.09]
[null,null,"131.2.19.60.01.0.05.0.220.150","Возврат в районный бюджет остатков на начало года субсидии на обеспечение мероприятий по переселению граждан из аварийного жилищного фонда обл.бюджет","Отдел архитектуры и строительства администрации Тонкинского муниципального района Нижегородской области","212","Возврат в районный бюджет остатков на начало года субсидии на обеспечение мероприятий по переселению граждан из аварийного жилищного фонда обл.бюджет",126.05,126.05,126.05]
[null,null,"131.2.19.60.01.0.05.0.220.150","Возврат в районный бюджет остатков на начало года субсидии на обеспечение мероприятий по переселению граждан из аварийного жилищного фонда за счет средств гос.корпорации - Фонд содействия реформированию ЖКХ","Отдел архитектуры и строительства администрации Тонкинского муниципального района Нижегородской области","213","Возврат в районный бюджет остатков на начало года субсидии на обеспечение мероприятий по переселению граждан из аварийного жилищного фонда за счет средств гос.корпорации - Фонд содействия реформированию ЖКХ",67.040000000000006,67.040000000000006,67.040000000000006]